{"text_format":"1","workbook":"xlsx","n_sheets":2,"sheets":["WksAscii","WksAdministration"],"not_rendered":{"charts":0,"images":1,"macros":0,"external_links":0,"defined_names":0,"comments":0,"pivot_tables":0},"unopened":[],"bounds":{"document_bytes":16777216,"sheet_cells":100000,"rows_first":2000,"rows_last":500,"rows_between":2000,"halvings":0,"cell_chars":16384,"cell_head_chars":4096},"cells_cut":0,"cells_raw":0,"read":"whole","date_system":"1900"}

{"sheet":"WksAscii","index":0,"n_rows":256,"n_cols":6,"rows_kept":256,"cut":false,"hidden":false,"merged":[]}
["Code ASCII","Standard","Webdings","Wingdings 1","Wingdings 2","Wingdings 3"]
[{"$f":"ROW()-1","v":1},{"$f":"CHAR(TblAscii[[#This Row],[Code ASCII]])","v":"\u0001"},{"$f":"CHAR(TblAscii[[#This Row],[Code ASCII]])","v":"\u0001"},{"$f":"CHAR(TblAscii[[#This Row],[Code ASCII]])","v":"\u0001"},{"$f":"CHAR(TblAscii[[#This Row],[Code ASCII]])","v":"\u0001"},{"$f":"CHAR(TblAscii[[#This Row],[Code ASCII]])","v":"\u0001"}]
[2,{"$f":"CHAR(TblAscii[[#This Row],[Code ASCII]])","v":"\u0002"},{"$f":"CHAR(TblAscii[[#This Row],[Code ASCII]])","v":"\u0002"},{"$f":"CHAR(TblAscii[[#This Row],[Code ASCII]])","v":"\u0002"},{"$f":"CHAR(TblAscii[[#This Row],[Code ASCII]])","v":"\u0002"},{"$f":"CHAR(TblAscii[[#This Row],[Code ASCII]])","v":"\u0002"}]
[3,{"$f":"CHAR(TblAscii[[#This Row],[Code ASCII]])","v":"\u0003"},{"$f":"CHAR(TblAscii[[#This Row],[Code ASCII]])","v":"\u0003"},{"$f":"CHAR(TblAscii[[#This Row],[Code ASCII]])","v":"\u0003"},{"$f":"CHAR(TblAscii[[#This Row],[Code ASCII]])","v":"\u0003"},{"$f":"CHAR(TblAscii[[#This Row],[Code ASCII]])","v":"\u0003"}]
[4,{"$f":"CHAR(TblAscii[[#This Row],[Code ASCII]])","v":"\u0004"},{"$f":"CHAR(TblAscii[[#This Row],[Code ASCII]])","v":"\u0004"},{"$f":"CHAR(TblAscii[[#This Row],[Code ASCII]])","v":"\u0004"},{"$f":"CHAR(TblAscii[[#This Row],[Code ASCII]])","v":"\u0004"},{"$f":"CHAR(TblAscii[[#This Row],[Code ASCII]])","v":"\u0004"}]
[5,{"$f":"CHAR(TblAscii[[#This Row],[Code ASCII]])","v":"\u0005"},{"$f":"CHAR(TblAscii[[#This Row],[Code ASCII]])","v":"\u0005"},{"$f":"CHAR(TblAscii[[#This Row],[Code ASCII]])","v":"\u0005"},{"$f":"CHAR(TblAscii[[#This Row],[Code ASCII]])","v":"\u0005"},{"$f":"CHAR(TblAscii[[#This Row],[Code ASCII]])","v":"\u0005"}]
[6,{"$f":"CHAR(TblAscii[[#This Row],[Code ASCII]])","v":"\u0006"},{"$f":"CHAR(TblAscii[[#This Row],[Code ASCII]])","v":"\u0006"},{"$f":"CHAR(TblAscii[[#This Row],[Code ASCII]])","v":"\u0006"},{"$f":"CHAR(TblAscii[[#This Row],[Code ASCII]])","v":"\u0006"},{"$f":"CHAR(TblAscii[[#This Row],[Code ASCII]])","v":"\u0006"}]
[7,{"$f":"CHAR(TblAscii[[#This Row],[Code ASCII]])","v":"\u0007"},{"$f":"CHAR(TblAscii[[#This Row],[Code ASCII]])","v":"\u0007"},{"$f":"CHAR(TblAscii[[#This Row],[Code ASCII]])","v":"\u0007"},{"$f":"CHAR(TblAscii[[#This Row],[Code ASCII]])","v":"\u0007"},{"$f":"CHAR(TblAscii[[#This Row],[Code ASCII]])","v":"\u0007"}]
[8,{"$f":"CHAR(TblAscii[[#This Row],[Code ASCII]])","v":"\b"},{"$f":"CHAR(TblAscii[[#This Row],[Code ASCII]])","v":"\b"},{"$f":"CHAR(TblAscii[[#This Row],[Code ASCII]])","v":"\b"},{"$f":"CHAR(TblAscii[[#This Row],[Code ASCII]])","v":"\b"},{"$f":"CHAR(TblAscii[[#This Row],[Code ASCII]])","v":"\b"}]
[9,{"$f":"CHAR(TblAscii[[#This Row],[Code ASCII]])","v":"\t"},{"$f":"CHAR(TblAscii[[#This Row],[Code ASCII]])","v":"\t"},{"$f":"CHAR(TblAscii[[#This Row],[Code ASCII]])","v":"\t"},{"$f":"CHAR(TblAscii[[#This Row],[Code ASCII]])","v":"\t"},{"$f":"CHAR(TblAscii[[#This Row],[Code ASCII]])","v":"\t"}]
[10,{"$f":"CHAR(TblAscii[[#This Row],[Code ASCII]])","v":"\n"},{"$f":"CHAR(TblAscii[[#This Row],[Code ASCII]])","v":"\n"},{"$f":"CHAR(TblAscii[[#This Row],[Code ASCII]])","v":"\n"},{"$f":"CHAR(TblAscii[[#This Row],[Code ASCII]])","v":"\n"},{"$f":"CHAR(TblAscii[[#This Row],[Code ASCII]])","v":"\n"}]
[11,{"$f":"CHAR(TblAscii[[#This Row],[Code ASCII]])","v":"\u000b"},{"$f":"CHAR(TblAscii[[#This Row],[Code ASCII]])","v":"\u000b"},{"$f":"CHAR(TblAscii[[#This Row],[Code ASCII]])","v":"\u000b"},{"$f":"CHAR(TblAscii[[#This Row],[Code ASCII]])","v":"\u000b"},{"$f":"CHAR(TblAscii[[#This Row],[Code ASCII]])","v":"\u000b"}]
[12,{"$f":"CHAR(TblAscii[[#This Row],[Code ASCII]])","v":"\f"},{"$f":"CHAR(TblAscii[[#This Row],[Code ASCII]])","v":"\f"},{"$f":"CHAR(TblAscii[[#This Row],[Code ASCII]])","v":"\f"},{"$f":"CHAR(TblAscii[[#This Row],[Code ASCII]])","v":"\f"},{"$f":"CHAR(TblAscii[[#This Row],[Code ASCII]])","v":"\f"}]
[13,{"$f":"CHAR(TblAscii[[#This Row],[Code ASCII]])","v":"\r"},{"$f":"CHAR(TblAscii[[#This Row],[Code ASCII]])","v":"\r"},{"$f":"CHAR(TblAscii[[#This Row],[Code ASCII]])","v":"\r"},{"$f":"CHAR(TblAscii[[#This Row],[Code ASCII]])","v":"\r"},{"$f":"CHAR(TblAscii[[#This Row],[Code ASCII]])","v":"\r"}]
[14,{"$f":"CHAR(TblAscii[[#This Row],[Code ASCII]])","v":"\u000e"},{"$f":"CHAR(TblAscii[[#This Row],[Code ASCII]])","v":"\u000e"},{"$f":"CHAR(TblAscii[[#This Row],[Code ASCII]])","v":"\u000e"},{"$f":"CHAR(TblAscii[[#This Row],[Code ASCII]])","v":"\u000e"},{"$f":"CHAR(TblAscii[[#This Row],[Code ASCII]])","v":"\u000e"}]
[15,{"$f":"CHAR(TblAscii[[#This Row],[Code ASCII]])","v":"\u000f"},{"$f":"CHAR(TblAscii[[#This Row],[Code ASCII]])","v":"\u000f"},{"$f":"CHAR(TblAscii[[#This Row],[Code ASCII]])","v":"\u000f"},{"$f":"CHAR(TblAscii[[#This Row],[Code ASCII]])","v":"\u000f"},{"$f":"CHAR(TblAscii[[#This Row],[Code ASCII]])","v":"\u000f"}]
[16,{"$f":"CHAR(TblAscii[[#This Row],[Code ASCII]])","v":"\u0010"},{"$f":"CHAR(TblAscii[[#This Row],[Code ASCII]])","v":"\u0010"},{"$f":"CHAR(TblAscii[[#This Row],[Code ASCII]])","v":"\u0010"},{"$f":"CHAR(TblAscii[[#This Row],[Code ASCII]])","v":"\u0010"},{"$f":"CHAR(TblAscii[[#This Row],[Code ASCII]])","v":"\u0010"}]
[17,{"$f":"CHAR(TblAscii[[#This Row],[Code ASCII]])","v":"\u0011"},{"$f":"CHAR(TblAscii[[#This Row],[Code ASCII]])","v":"\u0011"},{"$f":"CHAR(TblAscii[[#This Row],[Code ASCII]])","v":"\u0011"},{"$f":"CHAR(TblAscii[[#This Row],[Code ASCII]])","v":"\u0011"},{"$f":"CHAR(TblAscii[[#This Row],[Code ASCII]])","v":"\u0011"}]
[18,{"$f":"CHAR(TblAscii[[#This Row],[Code ASCII]])","v":"\u0012"},{"$f":"CHAR(TblAscii[[#This Row],[Code ASCII]])","v":"\u0012"},{"$f":"CHAR(TblAscii[[#This Row],[Code ASCII]])","v":"\u0012"},{"$f":"CHAR(TblAscii[[#This Row],[Code ASCII]])","v":"\u0012"},{"$f":"CHAR(TblAscii[[#This Row],[Code ASCII]])","v":"\u0012"}]
[19,{"$f":"CHAR(TblAscii[[#This Row],[Code ASCII]])","v":"\u0013"},{"$f":"CHAR(TblAscii[[#This Row],[Code ASCII]])","v":"\u0013"},{"$f":"CHAR(TblAscii[[#This Row],[Code ASCII]])","v":"\u0013"},{"$f":"CHAR(TblAscii[[#This Row],[Code ASCII]])","v":"\u0013"},{"$f":"CHAR(TblAscii[[#This Row],[Code ASCII]])","v":"\u0013"}]
[20,{"$f":"CHAR(TblAscii[[#This Row],[Code ASCII]])","v":"\u0014"},{"$f":"CHAR(TblAscii[[#This Row],[Code ASCII]])","v":"\u0014"},{"$f":"CHAR(TblAscii[[#This Row],[Code ASCII]])","v":"\u0014"},{"$f":"CHAR(TblAscii[[#This Row],[Code ASCII]])","v":"\u0014"},{"$f":"CHAR(TblAscii[[#This Row],[Code ASCII]])","v":"\u0014"}]
[21,{"$f":"CHAR(TblAscii[[#This Row],[Code ASCII]])","v":"\u0015"},{"$f":"CHAR(TblAscii[[#This Row],[Code ASCII]])","v":"\u0015"},{"$f":"CHAR(TblAscii[[#This Row],[Code ASCII]])","v":"\u0015"},{"$f":"CHAR(TblAscii[[#This Row],[Code ASCII]])","v":"\u0015"},{"$f":"CHAR(TblAscii[[#This Row],[Code ASCII]])","v":"\u0015"}]
[22,{"$f":"CHAR(TblAscii[[#This Row],[Code ASCII]])","v":"\u0016"},{"$f":"CHAR(TblAscii[[#This Row],[Code ASCII]])","v":"\u0016"},{"$f":"CHAR(TblAscii[[#This Row],[Code ASCII]])","v":"\u0016"},{"$f":"CHAR(TblAscii[[#This Row],[Code ASCII]])","v":"\u0016"},{"$f":"CHAR(TblAscii[[#This Row],[Code ASCII]])","v":"\u0016"}]
[23,{"$f":"CHAR(TblAscii[[#This Row],[Code ASCII]])","v":"\u0017"},{"$f":"CHAR(TblAscii[[#This Row],[Code ASCII]])","v":"\u0017"},{"$f":"CHAR(TblAscii[[#This Row],[Code ASCII]])","v":"\u0017"},{"$f":"CHAR(TblAscii[[#This Row],[Code ASCII]])","v":"\u0017"},{"$f":"CHAR(TblAscii[[#This Row],[Code ASCII]])","v":"\u0017"}]
[24,{"$f":"CHAR(TblAscii[[#This Row],[Code ASCII]])","v":"\u0018"},{"$f":"CHAR(TblAscii[[#This Row],[Code ASCII]])","v":"\u0018"},{"$f":"CHAR(TblAscii[[#This Row],[Code ASCII]])","v":"\u0018"},{"$f":"CHAR(TblAscii[[#This Row],[Code ASCII]])","v":"\u0018"},{"$f":"CHAR(TblAscii[[#This Row],[Code ASCII]])","v":"\u0018"}]
[25,{"$f":"CHAR(TblAscii[[#This Row],[Code ASCII]])","v":"\u0019"},{"$f":"CHAR(TblAscii[[#This Row],[Code ASCII]])","v":"\u0019"},{"$f":"CHAR(TblAscii[[#This Row],[Code ASCII]])","v":"\u0019"},{"$f":"CHAR(TblAscii[[#This Row],[Code ASCII]])","v":"\u0019"},{"$f":"CHAR(TblAscii[[#This Row],[Code ASCII]])","v":"\u0019"}]
[26,{"$f":"CHAR(TblAscii[[#This Row],[Code ASCII]])","v":"\u001a"},{"$f":"CHAR(TblAscii[[#This Row],[Code ASCII]])","v":"\u001a"},{"$f":"CHAR(TblAscii[[#This Row],[Code ASCII]])","v":"\u001a"},{"$f":"CHAR(TblAscii[[#This Row],[Code ASCII]])","v":"\u001a"},{"$f":"CHAR(TblAscii[[#This Row],[Code ASCII]])","v":"\u001a"}]
[27,{"$f":"CHAR(TblAscii[[#This Row],[Code ASCII]])","v":"\u001b"},{"$f":"CHAR(TblAscii[[#This Row],[Code ASCII]])","v":"\u001b"},{"$f":"CHAR(TblAscii[[#This Row],[Code ASCII]])","v":"\u001b"},{"$f":"CHAR(TblAscii[[#This Row],[Code ASCII]])","v":"\u001b"},{"$f":"CHAR(TblAscii[[#This Row],[Code ASCII]])","v":"\u001b"}]
[28,{"$f":"CHAR(TblAscii[[#This Row],[Code ASCII]])","v":"\u001c"},{"$f":"CHAR(TblAscii[[#This Row],[Code ASCII]])","v":"\u001c"},{"$f":"CHAR(TblAscii[[#This Row],[Code ASCII]])","v":"\u001c"},{"$f":"CHAR(TblAscii[[#This Row],[Code ASCII]])","v":"\u001c"},{"$f":"CHAR(TblAscii[[#This Row],[Code ASCII]])","v":"\u001c"}]
[29,{"$f":"CHAR(TblAscii[[#This Row],[Code ASCII]])","v":"\u001d"},{"$f":"CHAR(TblAscii[[#This Row],[Code ASCII]])","v":"\u001d"},{"$f":"CHAR(TblAscii[[#This Row],[Code ASCII]])","v":"\u001d"},{"$f":"CHAR(TblAscii[[#This Row],[Code ASCII]])","v":"\u001d"},{"$f":"CHAR(TblAscii[[#This Row],[Code ASCII]])","v":"\u001d"}]
[30,{"$f":"CHAR(TblAscii[[#This Row],[Code ASCII]])","v":"\u001e"},{"$f":"CHAR(TblAscii[[#This Row],[Code ASCII]])","v":"\u001e"},{"$f":"CHAR(TblAscii[[#This Row],[Code ASCII]])","v":"\u001e"},{"$f":"CHAR(TblAscii[[#This Row],[Code ASCII]])","v":"\u001e"},{"$f":"CHAR(TblAscii[[#This Row],[Code ASCII]])","v":"\u001e"}]
[31,{"$f":"CHAR(TblAscii[[#This Row],[Code ASCII]])","v":"\u001f"},{"$f":"CHAR(TblAscii[[#This Row],[Code ASCII]])","v":"\u001f"},{"$f":"CHAR(TblAscii[[#This Row],[Code ASCII]])","v":"\u001f"},{"$f":"CHAR(TblAscii[[#This Row],[Code ASCII]])","v":"\u001f"},{"$f":"CHAR(TblAscii[[#This Row],[Code ASCII]])","v":"\u001f"}]
[32,{"$f":"CHAR(TblAscii[[#This Row],[Code ASCII]])","v":" "},{"$f":"CHAR(TblAscii[[#This Row],[Code ASCII]])","v":" "},{"$f":"CHAR(TblAscii[[#This Row],[Code ASCII]])","v":" "},{"$f":"CHAR(TblAscii[[#This Row],[Code ASCII]])","v":" "},{"$f":"CHAR(TblAscii[[#This Row],[Code ASCII]])","v":" "}]
[33,{"$f":"CHAR(TblAscii[[#This Row],[Code ASCII]])","v":"!"},{"$f":"CHAR(TblAscii[[#This Row],[Code ASCII]])","v":"!"},{"$f":"CHAR(TblAscii[[#This Row],[Code ASCII]])","v":"!"},{"$f":"CHAR(TblAscii[[#This Row],[Code ASCII]])","v":"!"},{"$f":"CHAR(TblAscii[[#This Row],[Code ASCII]])","v":"!"}]
[34,{"$f":"CHAR(TblAscii[[#This Row],[Code ASCII]])","v":"\""},{"$f":"CHAR(TblAscii[[#This Row],[Code ASCII]])","v":"\""},{"$f":"CHAR(TblAscii[[#This Row],[Code ASCII]])","v":"\""},{"$f":"CHAR(TblAscii[[#This Row],[Code ASCII]])","v":"\""},{"$f":"CHAR(TblAscii[[#This Row],[Code ASCII]])","v":"\""}]
[35,{"$f":"CHAR(TblAscii[[#This Row],[Code ASCII]])","v":"#"},{"$f":"CHAR(TblAscii[[#This Row],[Code ASCII]])","v":"#"},{"$f":"CHAR(TblAscii[[#This Row],[Code ASCII]])","v":"#"},{"$f":"CHAR(TblAscii[[#This Row],[Code ASCII]])","v":"#"},{"$f":"CHAR(TblAscii[[#This Row],[Code ASCII]])","v":"#"}]
[36,{"$f":"CHAR(TblAscii[[#This Row],[Code ASCII]])","v":"$"},{"$f":"CHAR(TblAscii[[#This Row],[Code ASCII]])","v":"$"},{"$f":"CHAR(TblAscii[[#This Row],[Code ASCII]])","v":"$"},{"$f":"CHAR(TblAscii[[#This Row],[Code ASCII]])","v":"$"},{"$f":"CHAR(TblAscii[[#This Row],[Code ASCII]])","v":"$"}]
[37,{"$f":"CHAR(TblAscii[[#This Row],[Code ASCII]])","v":"%"},{"$f":"CHAR(TblAscii[[#This Row],[Code ASCII]])","v":"%"},{"$f":"CHAR(TblAscii[[#This Row],[Code ASCII]])","v":"%"},{"$f":"CHAR(TblAscii[[#This Row],[Code ASCII]])","v":"%"},{"$f":"CHAR(TblAscii[[#This Row],[Code ASCII]])","v":"%"}]
[38,{"$f":"CHAR(TblAscii[[#This Row],[Code ASCII]])","v":"&"},{"$f":"CHAR(TblAscii[[#This Row],[Code ASCII]])","v":"&"},{"$f":"CHAR(TblAscii[[#This Row],[Code ASCII]])","v":"&"},{"$f":"CHAR(TblAscii[[#This Row],[Code ASCII]])","v":"&"},{"$f":"CHAR(TblAscii[[#This Row],[Code ASCII]])","v":"&"}]
[39,{"$f":"CHAR(TblAscii[[#This Row],[Code ASCII]])","v":"'"},{"$f":"CHAR(TblAscii[[#This Row],[Code ASCII]])","v":"'"},{"$f":"CHAR(TblAscii[[#This Row],[Code ASCII]])","v":"'"},{"$f":"CHAR(TblAscii[[#This Row],[Code ASCII]])","v":"'"},{"$f":"CHAR(TblAscii[[#This Row],[Code ASCII]])","v":"'"}]
[40,{"$f":"CHAR(TblAscii[[#This Row],[Code ASCII]])","v":"("},{"$f":"CHAR(TblAscii[[#This Row],[Code ASCII]])","v":"("},{"$f":"CHAR(TblAscii[[#This Row],[Code ASCII]])","v":"("},{"$f":"CHAR(TblAscii[[#This Row],[Code ASCII]])","v":"("},{"$f":"CHAR(TblAscii[[#This Row],[Code ASCII]])","v":"("}]
[41,{"$f":"CHAR(TblAscii[[#This Row],[Code ASCII]])","v":")"},{"$f":"CHAR(TblAscii[[#This Row],[Code ASCII]])","v":")"},{"$f":"CHAR(TblAscii[[#This Row],[Code ASCII]])","v":")"},{"$f":"CHAR(TblAscii[[#This Row],[Code ASCII]])","v":")"},{"$f":"CHAR(TblAscii[[#This Row],[Code ASCII]])","v":")"}]
[42,{"$f":"CHAR(TblAscii[[#This Row],[Code ASCII]])","v":"*"},{"$f":"CHAR(TblAscii[[#This Row],[Code ASCII]])","v":"*"},{"$f":"CHAR(TblAscii[[#This Row],[Code ASCII]])","v":"*"},{"$f":"CHAR(TblAscii[[#This Row],[Code ASCII]])","v":"*"},{"$f":"CHAR(TblAscii[[#This Row],[Code ASCII]])","v":"*"}]
[43,{"$f":"CHAR(TblAscii[[#This Row],[Code ASCII]])","v":"+"},{"$f":"CHAR(TblAscii[[#This Row],[Code ASCII]])","v":"+"},{"$f":"CHAR(TblAscii[[#This Row],[Code ASCII]])","v":"+"},{"$f":"CHAR(TblAscii[[#This Row],[Code ASCII]])","v":"+"},{"$f":"CHAR(TblAscii[[#This Row],[Code ASCII]])","v":"+"}]
[44,{"$f":"CHAR(TblAscii[[#This Row],[Code ASCII]])","v":","},{"$f":"CHAR(TblAscii[[#This Row],[Code ASCII]])","v":","},{"$f":"CHAR(TblAscii[[#This Row],[Code ASCII]])","v":","},{"$f":"CHAR(TblAscii[[#This Row],[Code ASCII]])","v":","},{"$f":"CHAR(TblAscii[[#This Row],[Code ASCII]])","v":","}]
[45,{"$f":"CHAR(TblAscii[[#This Row],[Code ASCII]])","v":"-"},{"$f":"CHAR(TblAscii[[#This Row],[Code ASCII]])","v":"-"},{"$f":"CHAR(TblAscii[[#This Row],[Code ASCII]])","v":"-"},{"$f":"CHAR(TblAscii[[#This Row],[Code ASCII]])","v":"-"},{"$f":"CHAR(TblAscii[[#This Row],[Code ASCII]])","v":"-"}]
[46,{"$f":"CHAR(TblAscii[[#This Row],[Code ASCII]])","v":"."},{"$f":"CHAR(TblAscii[[#This Row],[Code ASCII]])","v":"."},{"$f":"CHAR(TblAscii[[#This Row],[Code ASCII]])","v":"."},{"$f":"CHAR(TblAscii[[#This Row],[Code ASCII]])","v":"."},{"$f":"CHAR(TblAscii[[#This Row],[Code ASCII]])","v":"."}]
[47,{"$f":"CHAR(TblAscii[[#This Row],[Code ASCII]])","v":"/"},{"$f":"CHAR(TblAscii[[#This Row],[Code ASCII]])","v":"/"},{"$f":"CHAR(TblAscii[[#This Row],[Code ASCII]])","v":"/"},{"$f":"CHAR(TblAscii[[#This Row],[Code ASCII]])","v":"/"},{"$f":"CHAR(TblAscii[[#This Row],[Code ASCII]])","v":"/"}]
[48,{"$f":"CHAR(TblAscii[[#This Row],[Code ASCII]])","v":"0"},{"$f":"CHAR(TblAscii[[#This Row],[Code ASCII]])","v":"0"},{"$f":"CHAR(TblAscii[[#This Row],[Code ASCII]])","v":"0"},{"$f":"CHAR(TblAscii[[#This Row],[Code ASCII]])","v":"0"},{"$f":"CHAR(TblAscii[[#This Row],[Code ASCII]])","v":"0"}]
[49,{"$f":"CHAR(TblAscii[[#This Row],[Code ASCII]])","v":"1"},{"$f":"CHAR(TblAscii[[#This Row],[Code ASCII]])","v":"1"},{"$f":"CHAR(TblAscii[[#This Row],[Code ASCII]])","v":"1"},{"$f":"CHAR(TblAscii[[#This Row],[Code ASCII]])","v":"1"},{"$f":"CHAR(TblAscii[[#This Row],[Code ASCII]])","v":"1"}]
[50,{"$f":"CHAR(TblAscii[[#This Row],[Code ASCII]])","v":"2"},{"$f":"CHAR(TblAscii[[#This Row],[Code ASCII]])","v":"2"},{"$f":"CHAR(TblAscii[[#This Row],[Code ASCII]])","v":"2"},{"$f":"CHAR(TblAscii[[#This Row],[Code ASCII]])","v":"2"},{"$f":"CHAR(TblAscii[[#This Row],[Code ASCII]])","v":"2"}]
[51,{"$f":"CHAR(TblAscii[[#This Row],[Code ASCII]])","v":"3"},{"$f":"CHAR(TblAscii[[#This Row],[Code ASCII]])","v":"3"},{"$f":"CHAR(TblAscii[[#This Row],[Code ASCII]])","v":"3"},{"$f":"CHAR(TblAscii[[#This Row],[Code ASCII]])","v":"3"},{"$f":"CHAR(TblAscii[[#This Row],[Code ASCII]])","v":"3"}]
[52,{"$f":"CHAR(TblAscii[[#This Row],[Code ASCII]])","v":"4"},{"$f":"CHAR(TblAscii[[#This Row],[Code ASCII]])","v":"4"},{"$f":"CHAR(TblAscii[[#This Row],[Code ASCII]])","v":"4"},{"$f":"CHAR(TblAscii[[#This Row],[Code ASCII]])","v":"4"},{"$f":"CHAR(TblAscii[[#This Row],[Code ASCII]])","v":"4"}]
[53,{"$f":"CHAR(TblAscii[[#This Row],[Code ASCII]])","v":"5"},{"$f":"CHAR(TblAscii[[#This Row],[Code ASCII]])","v":"5"},{"$f":"CHAR(TblAscii[[#This Row],[Code ASCII]])","v":"5"},{"$f":"CHAR(TblAscii[[#This Row],[Code ASCII]])","v":"5"},{"$f":"CHAR(TblAscii[[#This Row],[Code ASCII]])","v":"5"}]
[54,{"$f":"CHAR(TblAscii[[#This Row],[Code ASCII]])","v":"6"},{"$f":"CHAR(TblAscii[[#This Row],[Code ASCII]])","v":"6"},{"$f":"CHAR(TblAscii[[#This Row],[Code ASCII]])","v":"6"},{"$f":"CHAR(TblAscii[[#This Row],[Code ASCII]])","v":"6"},{"$f":"CHAR(TblAscii[[#This Row],[Code ASCII]])","v":"6"}]
[55,{"$f":"CHAR(TblAscii[[#This Row],[Code ASCII]])","v":"7"},{"$f":"CHAR(TblAscii[[#This Row],[Code ASCII]])","v":"7"},{"$f":"CHAR(TblAscii[[#This Row],[Code ASCII]])","v":"7"},{"$f":"CHAR(TblAscii[[#This Row],[Code ASCII]])","v":"7"},{"$f":"CHAR(TblAscii[[#This Row],[Code ASCII]])","v":"7"}]
[56,{"$f":"CHAR(TblAscii[[#This Row],[Code ASCII]])","v":"8"},{"$f":"CHAR(TblAscii[[#This Row],[Code ASCII]])","v":"8"},{"$f":"CHAR(TblAscii[[#This Row],[Code ASCII]])","v":"8"},{"$f":"CHAR(TblAscii[[#This Row],[Code ASCII]])","v":"8"},{"$f":"CHAR(TblAscii[[#This Row],[Code ASCII]])","v":"8"}]
[57,{"$f":"CHAR(TblAscii[[#This Row],[Code ASCII]])","v":"9"},{"$f":"CHAR(TblAscii[[#This Row],[Code ASCII]])","v":"9"},{"$f":"CHAR(TblAscii[[#This Row],[Code ASCII]])","v":"9"},{"$f":"CHAR(TblAscii[[#This Row],[Code ASCII]])","v":"9"},{"$f":"CHAR(TblAscii[[#This Row],[Code ASCII]])","v":"9"}]
[58,{"$f":"CHAR(TblAscii[[#This Row],[Code ASCII]])","v":":"},{"$f":"CHAR(TblAscii[[#This Row],[Code ASCII]])","v":":"},{"$f":"CHAR(TblAscii[[#This Row],[Code ASCII]])","v":":"},{"$f":"CHAR(TblAscii[[#This Row],[Code ASCII]])","v":":"},{"$f":"CHAR(TblAscii[[#This Row],[Code ASCII]])","v":":"}]
[59,{"$f":"CHAR(TblAscii[[#This Row],[Code ASCII]])","v":";"},{"$f":"CHAR(TblAscii[[#This Row],[Code ASCII]])","v":";"},{"$f":"CHAR(TblAscii[[#This Row],[Code ASCII]])","v":";"},{"$f":"CHAR(TblAscii[[#This Row],[Code ASCII]])","v":";"},{"$f":"CHAR(TblAscii[[#This Row],[Code ASCII]])","v":";"}]
[60,{"$f":"CHAR(TblAscii[[#This Row],[Code ASCII]])","v":"<"},{"$f":"CHAR(TblAscii[[#This Row],[Code ASCII]])","v":"<"},{"$f":"CHAR(TblAscii[[#This Row],[Code ASCII]])","v":"<"},{"$f":"CHAR(TblAscii[[#This Row],[Code ASCII]])","v":"<"},{"$f":"CHAR(TblAscii[[#This Row],[Code ASCII]])","v":"<"}]
[61,{"$f":"CHAR(TblAscii[[#This Row],[Code ASCII]])","v":"="},{"$f":"CHAR(TblAscii[[#This Row],[Code ASCII]])","v":"="},{"$f":"CHAR(TblAscii[[#This Row],[Code ASCII]])","v":"="},{"$f":"CHAR(TblAscii[[#This Row],[Code ASCII]])","v":"="},{"$f":"CHAR(TblAscii[[#This Row],[Code ASCII]])","v":"="}]
[62,{"$f":"CHAR(TblAscii[[#This Row],[Code ASCII]])","v":">"},{"$f":"CHAR(TblAscii[[#This Row],[Code ASCII]])","v":">"},{"$f":"CHAR(TblAscii[[#This Row],[Code ASCII]])","v":">"},{"$f":"CHAR(TblAscii[[#This Row],[Code ASCII]])","v":">"},{"$f":"CHAR(TblAscii[[#This Row],[Code ASCII]])","v":">"}]
[63,{"$f":"CHAR(TblAscii[[#This Row],[Code ASCII]])","v":"?"},{"$f":"CHAR(TblAscii[[#This Row],[Code ASCII]])","v":"?"},{"$f":"CHAR(TblAscii[[#This Row],[Code ASCII]])","v":"?"},{"$f":"CHAR(TblAscii[[#This Row],[Code ASCII]])","v":"?"},{"$f":"CHAR(TblAscii[[#This Row],[Code ASCII]])","v":"?"}]
[64,{"$f":"CHAR(TblAscii[[#This Row],[Code ASCII]])","v":"@"},{"$f":"CHAR(TblAscii[[#This Row],[Code ASCII]])","v":"@"},{"$f":"CHAR(TblAscii[[#This Row],[Code ASCII]])","v":"@"},{"$f":"CHAR(TblAscii[[#This Row],[Code ASCII]])","v":"@"},{"$f":"CHAR(TblAscii[[#This Row],[Code ASCII]])","v":"@"}]
[{"$f":"ROW()-1","v":65},{"$f":"CHAR(TblAscii[[#This Row],[Code ASCII]])","v":"A"},{"$f":"CHAR(TblAscii[[#This Row],[Code ASCII]])","v":"A"},{"$f":"CHAR(TblAscii[[#This Row],[Code ASCII]])","v":"A"},{"$f":"CHAR(TblAscii[[#This Row],[Code ASCII]])","v":"A"},{"$f":"CHAR(TblAscii[[#This Row],[Code ASCII]])","v":"A"}]
[66,{"$f":"CHAR(TblAscii[[#This Row],[Code ASCII]])","v":"B"},{"$f":"CHAR(TblAscii[[#This Row],[Code ASCII]])","v":"B"},{"$f":"CHAR(TblAscii[[#This Row],[Code ASCII]])","v":"B"},{"$f":"CHAR(TblAscii[[#This Row],[Code ASCII]])","v":"B"},{"$f":"CHAR(TblAscii[[#This Row],[Code ASCII]])","v":"B"}]
[67,{"$f":"CHAR(TblAscii[[#This Row],[Code ASCII]])","v":"C"},{"$f":"CHAR(TblAscii[[#This Row],[Code ASCII]])","v":"C"},{"$f":"CHAR(TblAscii[[#This Row],[Code ASCII]])","v":"C"},{"$f":"CHAR(TblAscii[[#This Row],[Code ASCII]])","v":"C"},{"$f":"CHAR(TblAscii[[#This Row],[Code ASCII]])","v":"C"}]
[68,{"$f":"CHAR(TblAscii[[#This Row],[Code ASCII]])","v":"D"},{"$f":"CHAR(TblAscii[[#This Row],[Code ASCII]])","v":"D"},{"$f":"CHAR(TblAscii[[#This Row],[Code ASCII]])","v":"D"},{"$f":"CHAR(TblAscii[[#This Row],[Code ASCII]])","v":"D"},{"$f":"CHAR(TblAscii[[#This Row],[Code ASCII]])","v":"D"}]
[69,{"$f":"CHAR(TblAscii[[#This Row],[Code ASCII]])","v":"E"},{"$f":"CHAR(TblAscii[[#This Row],[Code ASCII]])","v":"E"},{"$f":"CHAR(TblAscii[[#This Row],[Code ASCII]])","v":"E"},{"$f":"CHAR(TblAscii[[#This Row],[Code ASCII]])","v":"E"},{"$f":"CHAR(TblAscii[[#This Row],[Code ASCII]])","v":"E"}]
[70,{"$f":"CHAR(TblAscii[[#This Row],[Code ASCII]])","v":"F"},{"$f":"CHAR(TblAscii[[#This Row],[Code ASCII]])","v":"F"},{"$f":"CHAR(TblAscii[[#This Row],[Code ASCII]])","v":"F"},{"$f":"CHAR(TblAscii[[#This Row],[Code ASCII]])","v":"F"},{"$f":"CHAR(TblAscii[[#This Row],[Code ASCII]])","v":"F"}]
[71,{"$f":"CHAR(TblAscii[[#This Row],[Code ASCII]])","v":"G"},{"$f":"CHAR(TblAscii[[#This Row],[Code ASCII]])","v":"G"},{"$f":"CHAR(TblAscii[[#This Row],[Code ASCII]])","v":"G"},{"$f":"CHAR(TblAscii[[#This Row],[Code ASCII]])","v":"G"},{"$f":"CHAR(TblAscii[[#This Row],[Code ASCII]])","v":"G"}]
[72,{"$f":"CHAR(TblAscii[[#This Row],[Code ASCII]])","v":"H"},{"$f":"CHAR(TblAscii[[#This Row],[Code ASCII]])","v":"H"},{"$f":"CHAR(TblAscii[[#This Row],[Code ASCII]])","v":"H"},{"$f":"CHAR(TblAscii[[#This Row],[Code ASCII]])","v":"H"},{"$f":"CHAR(TblAscii[[#This Row],[Code ASCII]])","v":"H"}]
[73,{"$f":"CHAR(TblAscii[[#This Row],[Code ASCII]])","v":"I"},{"$f":"CHAR(TblAscii[[#This Row],[Code ASCII]])","v":"I"},{"$f":"CHAR(TblAscii[[#This Row],[Code ASCII]])","v":"I"},{"$f":"CHAR(TblAscii[[#This Row],[Code ASCII]])","v":"I"},{"$f":"CHAR(TblAscii[[#This Row],[Code ASCII]])","v":"I"}]
[74,{"$f":"CHAR(TblAscii[[#This Row],[Code ASCII]])","v":"J"},{"$f":"CHAR(TblAscii[[#This Row],[Code ASCII]])","v":"J"},{"$f":"CHAR(TblAscii[[#This Row],[Code ASCII]])","v":"J"},{"$f":"CHAR(TblAscii[[#This Row],[Code ASCII]])","v":"J"},{"$f":"CHAR(TblAscii[[#This Row],[Code ASCII]])","v":"J"}]
[75,{"$f":"CHAR(TblAscii[[#This Row],[Code ASCII]])","v":"K"},{"$f":"CHAR(TblAscii[[#This Row],[Code ASCII]])","v":"K"},{"$f":"CHAR(TblAscii[[#This Row],[Code ASCII]])","v":"K"},{"$f":"CHAR(TblAscii[[#This Row],[Code ASCII]])","v":"K"},{"$f":"CHAR(TblAscii[[#This Row],[Code ASCII]])","v":"K"}]
[76,{"$f":"CHAR(TblAscii[[#This Row],[Code ASCII]])","v":"L"},{"$f":"CHAR(TblAscii[[#This Row],[Code ASCII]])","v":"L"},{"$f":"CHAR(TblAscii[[#This Row],[Code ASCII]])","v":"L"},{"$f":"CHAR(TblAscii[[#This Row],[Code ASCII]])","v":"L"},{"$f":"CHAR(TblAscii[[#This Row],[Code ASCII]])","v":"L"}]
[77,{"$f":"CHAR(TblAscii[[#This Row],[Code ASCII]])","v":"M"},{"$f":"CHAR(TblAscii[[#This Row],[Code ASCII]])","v":"M"},{"$f":"CHAR(TblAscii[[#This Row],[Code ASCII]])","v":"M"},{"$f":"CHAR(TblAscii[[#This Row],[Code ASCII]])","v":"M"},{"$f":"CHAR(TblAscii[[#This Row],[Code ASCII]])","v":"M"}]
[78,{"$f":"CHAR(TblAscii[[#This Row],[Code ASCII]])","v":"N"},{"$f":"CHAR(TblAscii[[#This Row],[Code ASCII]])","v":"N"},{"$f":"CHAR(TblAscii[[#This Row],[Code ASCII]])","v":"N"},{"$f":"CHAR(TblAscii[[#This Row],[Code ASCII]])","v":"N"},{"$f":"CHAR(TblAscii[[#This Row],[Code ASCII]])","v":"N"}]
[79,{"$f":"CHAR(TblAscii[[#This Row],[Code ASCII]])","v":"O"},{"$f":"CHAR(TblAscii[[#This Row],[Code ASCII]])","v":"O"},{"$f":"CHAR(TblAscii[[#This Row],[Code ASCII]])","v":"O"},{"$f":"CHAR(TblAscii[[#This Row],[Code ASCII]])","v":"O"},{"$f":"CHAR(TblAscii[[#This Row],[Code ASCII]])","v":"O"}]
[80,{"$f":"CHAR(TblAscii[[#This Row],[Code ASCII]])","v":"P"},{"$f":"CHAR(TblAscii[[#This Row],[Code ASCII]])","v":"P"},{"$f":"CHAR(TblAscii[[#This Row],[Code ASCII]])","v":"P"},{"$f":"CHAR(TblAscii[[#This Row],[Code ASCII]])","v":"P"},{"$f":"CHAR(TblAscii[[#This Row],[Code ASCII]])","v":"P"}]
[81,{"$f":"CHAR(TblAscii[[#This Row],[Code ASCII]])","v":"Q"},{"$f":"CHAR(TblAscii[[#This Row],[Code ASCII]])","v":"Q"},{"$f":"CHAR(TblAscii[[#This Row],[Code ASCII]])","v":"Q"},{"$f":"CHAR(TblAscii[[#This Row],[Code ASCII]])","v":"Q"},{"$f":"CHAR(TblAscii[[#This Row],[Code ASCII]])","v":"Q"}]
[82,{"$f":"CHAR(TblAscii[[#This Row],[Code ASCII]])","v":"R"},{"$f":"CHAR(TblAscii[[#This Row],[Code ASCII]])","v":"R"},{"$f":"CHAR(TblAscii[[#This Row],[Code ASCII]])","v":"R"},{"$f":"CHAR(TblAscii[[#This Row],[Code ASCII]])","v":"R"},{"$f":"CHAR(TblAscii[[#This Row],[Code ASCII]])","v":"R"}]
[83,{"$f":"CHAR(TblAscii[[#This Row],[Code ASCII]])","v":"S"},{"$f":"CHAR(TblAscii[[#This Row],[Code ASCII]])","v":"S"},{"$f":"CHAR(TblAscii[[#This Row],[Code ASCII]])","v":"S"},{"$f":"CHAR(TblAscii[[#This Row],[Code ASCII]])","v":"S"},{"$f":"CHAR(TblAscii[[#This Row],[Code ASCII]])","v":"S"}]
[84,{"$f":"CHAR(TblAscii[[#This Row],[Code ASCII]])","v":"T"},{"$f":"CHAR(TblAscii[[#This Row],[Code ASCII]])","v":"T"},{"$f":"CHAR(TblAscii[[#This Row],[Code ASCII]])","v":"T"},{"$f":"CHAR(TblAscii[[#This Row],[Code ASCII]])","v":"T"},{"$f":"CHAR(TblAscii[[#This Row],[Code ASCII]])","v":"T"}]
[85,{"$f":"CHAR(TblAscii[[#This Row],[Code ASCII]])","v":"U"},{"$f":"CHAR(TblAscii[[#This Row],[Code ASCII]])","v":"U"},{"$f":"CHAR(TblAscii[[#This Row],[Code ASCII]])","v":"U"},{"$f":"CHAR(TblAscii[[#This Row],[Code ASCII]])","v":"U"},{"$f":"CHAR(TblAscii[[#This Row],[Code ASCII]])","v":"U"}]
[86,{"$f":"CHAR(TblAscii[[#This Row],[Code ASCII]])","v":"V"},{"$f":"CHAR(TblAscii[[#This Row],[Code ASCII]])","v":"V"},{"$f":"CHAR(TblAscii[[#This Row],[Code ASCII]])","v":"V"},{"$f":"CHAR(TblAscii[[#This Row],[Code ASCII]])","v":"V"},{"$f":"CHAR(TblAscii[[#This Row],[Code ASCII]])","v":"V"}]
[87,{"$f":"CHAR(TblAscii[[#This Row],[Code ASCII]])","v":"W"},{"$f":"CHAR(TblAscii[[#This Row],[Code ASCII]])","v":"W"},{"$f":"CHAR(TblAscii[[#This Row],[Code ASCII]])","v":"W"},{"$f":"CHAR(TblAscii[[#This Row],[Code ASCII]])","v":"W"},{"$f":"CHAR(TblAscii[[#This Row],[Code ASCII]])","v":"W"}]
[88,{"$f":"CHAR(TblAscii[[#This Row],[Code ASCII]])","v":"X"},{"$f":"CHAR(TblAscii[[#This Row],[Code ASCII]])","v":"X"},{"$f":"CHAR(TblAscii[[#This Row],[Code ASCII]])","v":"X"},{"$f":"CHAR(TblAscii[[#This Row],[Code ASCII]])","v":"X"},{"$f":"CHAR(TblAscii[[#This Row],[Code ASCII]])","v":"X"}]
[89,{"$f":"CHAR(TblAscii[[#This Row],[Code ASCII]])","v":"Y"},{"$f":"CHAR(TblAscii[[#This Row],[Code ASCII]])","v":"Y"},{"$f":"CHAR(TblAscii[[#This Row],[Code ASCII]])","v":"Y"},{"$f":"CHAR(TblAscii[[#This Row],[Code ASCII]])","v":"Y"},{"$f":"CHAR(TblAscii[[#This Row],[Code ASCII]])","v":"Y"}]
[90,{"$f":"CHAR(TblAscii[[#This Row],[Code ASCII]])","v":"Z"},{"$f":"CHAR(TblAscii[[#This Row],[Code ASCII]])","v":"Z"},{"$f":"CHAR(TblAscii[[#This Row],[Code ASCII]])","v":"Z"},{"$f":"CHAR(TblAscii[[#This Row],[Code ASCII]])","v":"Z"},{"$f":"CHAR(TblAscii[[#This Row],[Code ASCII]])","v":"Z"}]
[91,{"$f":"CHAR(TblAscii[[#This Row],[Code ASCII]])","v":"["},{"$f":"CHAR(TblAscii[[#This Row],[Code ASCII]])","v":"["},{"$f":"CHAR(TblAscii[[#This Row],[Code ASCII]])","v":"["},{"$f":"CHAR(TblAscii[[#This Row],[Code ASCII]])","v":"["},{"$f":"CHAR(TblAscii[[#This Row],[Code ASCII]])","v":"["}]
[92,{"$f":"CHAR(TblAscii[[#This Row],[Code ASCII]])","v":"\\"},{"$f":"CHAR(TblAscii[[#This Row],[Code ASCII]])","v":"\\"},{"$f":"CHAR(TblAscii[[#This Row],[Code ASCII]])","v":"\\"},{"$f":"CHAR(TblAscii[[#This Row],[Code ASCII]])","v":"\\"},{"$f":"CHAR(TblAscii[[#This Row],[Code ASCII]])","v":"\\"}]
[93,{"$f":"CHAR(TblAscii[[#This Row],[Code ASCII]])","v":"]"},{"$f":"CHAR(TblAscii[[#This Row],[Code ASCII]])","v":"]"},{"$f":"CHAR(TblAscii[[#This Row],[Code ASCII]])","v":"]"},{"$f":"CHAR(TblAscii[[#This Row],[Code ASCII]])","v":"]"},{"$f":"CHAR(TblAscii[[#This Row],[Code ASCII]])","v":"]"}]
[94,{"$f":"CHAR(TblAscii[[#This Row],[Code ASCII]])","v":"^"},{"$f":"CHAR(TblAscii[[#This Row],[Code ASCII]])","v":"^"},{"$f":"CHAR(TblAscii[[#This Row],[Code ASCII]])","v":"^"},{"$f":"CHAR(TblAscii[[#This Row],[Code ASCII]])","v":"^"},{"$f":"CHAR(TblAscii[[#This Row],[Code ASCII]])","v":"^"}]
[95,{"$f":"CHAR(TblAscii[[#This Row],[Code ASCII]])","v":"_"},{"$f":"CHAR(TblAscii[[#This Row],[Code ASCII]])","v":"_"},{"$f":"CHAR(TblAscii[[#This Row],[Code ASCII]])","v":"_"},{"$f":"CHAR(TblAscii[[#This Row],[Code ASCII]])","v":"_"},{"$f":"CHAR(TblAscii[[#This Row],[Code ASCII]])","v":"_"}]
[96,{"$f":"CHAR(TblAscii[[#This Row],[Code ASCII]])","v":"`"},{"$f":"CHAR(TblAscii[[#This Row],[Code ASCII]])","v":"`"},{"$f":"CHAR(TblAscii[[#This Row],[Code ASCII]])","v":"`"},{"$f":"CHAR(TblAscii[[#This Row],[Code ASCII]])","v":"`"},{"$f":"CHAR(TblAscii[[#This Row],[Code ASCII]])","v":"`"}]
[97,{"$f":"CHAR(TblAscii[[#This Row],[Code ASCII]])","v":"a"},{"$f":"CHAR(TblAscii[[#This Row],[Code ASCII]])","v":"a"},{"$f":"CHAR(TblAscii[[#This Row],[Code ASCII]])","v":"a"},{"$f":"CHAR(TblAscii[[#This Row],[Code ASCII]])","v":"a"},{"$f":"CHAR(TblAscii[[#This Row],[Code ASCII]])","v":"a"}]
[98,{"$f":"CHAR(TblAscii[[#This Row],[Code ASCII]])","v":"b"},{"$f":"CHAR(TblAscii[[#This Row],[Code ASCII]])","v":"b"},{"$f":"CHAR(TblAscii[[#This Row],[Code ASCII]])","v":"b"},{"$f":"CHAR(TblAscii[[#This Row],[Code ASCII]])","v":"b"},{"$f":"CHAR(TblAscii[[#This Row],[Code ASCII]])","v":"b"}]
[99,{"$f":"CHAR(TblAscii[[#This Row],[Code ASCII]])","v":"c"},{"$f":"CHAR(TblAscii[[#This Row],[Code ASCII]])","v":"c"},{"$f":"CHAR(TblAscii[[#This Row],[Code ASCII]])","v":"c"},{"$f":"CHAR(TblAscii[[#This Row],[Code ASCII]])","v":"c"},{"$f":"CHAR(TblAscii[[#This Row],[Code ASCII]])","v":"c"}]
[100,{"$f":"CHAR(TblAscii[[#This Row],[Code ASCII]])","v":"d"},{"$f":"CHAR(TblAscii[[#This Row],[Code ASCII]])","v":"d"},{"$f":"CHAR(TblAscii[[#This Row],[Code ASCII]])","v":"d"},{"$f":"CHAR(TblAscii[[#This Row],[Code ASCII]])","v":"d"},{"$f":"CHAR(TblAscii[[#This Row],[Code ASCII]])","v":"d"}]
[101,{"$f":"CHAR(TblAscii[[#This Row],[Code ASCII]])","v":"e"},{"$f":"CHAR(TblAscii[[#This Row],[Code ASCII]])","v":"e"},{"$f":"CHAR(TblAscii[[#This Row],[Code ASCII]])","v":"e"},{"$f":"CHAR(TblAscii[[#This Row],[Code ASCII]])","v":"e"},{"$f":"CHAR(TblAscii[[#This Row],[Code ASCII]])","v":"e"}]
[102,{"$f":"CHAR(TblAscii[[#This Row],[Code ASCII]])","v":"f"},{"$f":"CHAR(TblAscii[[#This Row],[Code ASCII]])","v":"f"},{"$f":"CHAR(TblAscii[[#This Row],[Code ASCII]])","v":"f"},{"$f":"CHAR(TblAscii[[#This Row],[Code ASCII]])","v":"f"},{"$f":"CHAR(TblAscii[[#This Row],[Code ASCII]])","v":"f"}]
[103,{"$f":"CHAR(TblAscii[[#This Row],[Code ASCII]])","v":"g"},{"$f":"CHAR(TblAscii[[#This Row],[Code ASCII]])","v":"g"},{"$f":"CHAR(TblAscii[[#This Row],[Code ASCII]])","v":"g"},{"$f":"CHAR(TblAscii[[#This Row],[Code ASCII]])","v":"g"},{"$f":"CHAR(TblAscii[[#This Row],[Code ASCII]])","v":"g"}]
[104,{"$f":"CHAR(TblAscii[[#This Row],[Code ASCII]])","v":"h"},{"$f":"CHAR(TblAscii[[#This Row],[Code ASCII]])","v":"h"},{"$f":"CHAR(TblAscii[[#This Row],[Code ASCII]])","v":"h"},{"$f":"CHAR(TblAscii[[#This Row],[Code ASCII]])","v":"h"},{"$f":"CHAR(TblAscii[[#This Row],[Code ASCII]])","v":"h"}]
[105,{"$f":"CHAR(TblAscii[[#This Row],[Code ASCII]])","v":"i"},{"$f":"CHAR(TblAscii[[#This Row],[Code ASCII]])","v":"i"},{"$f":"CHAR(TblAscii[[#This Row],[Code ASCII]])","v":"i"},{"$f":"CHAR(TblAscii[[#This Row],[Code ASCII]])","v":"i"},{"$f":"CHAR(TblAscii[[#This Row],[Code ASCII]])","v":"i"}]
[106,{"$f":"CHAR(TblAscii[[#This Row],[Code ASCII]])","v":"j"},{"$f":"CHAR(TblAscii[[#This Row],[Code ASCII]])","v":"j"},{"$f":"CHAR(TblAscii[[#This Row],[Code ASCII]])","v":"j"},{"$f":"CHAR(TblAscii[[#This Row],[Code ASCII]])","v":"j"},{"$f":"CHAR(TblAscii[[#This Row],[Code ASCII]])","v":"j"}]
[107,{"$f":"CHAR(TblAscii[[#This Row],[Code ASCII]])","v":"k"},{"$f":"CHAR(TblAscii[[#This Row],[Code ASCII]])","v":"k"},{"$f":"CHAR(TblAscii[[#This Row],[Code ASCII]])","v":"k"},{"$f":"CHAR(TblAscii[[#This Row],[Code ASCII]])","v":"k"},{"$f":"CHAR(TblAscii[[#This Row],[Code ASCII]])","v":"k"}]
[108,{"$f":"CHAR(TblAscii[[#This Row],[Code ASCII]])","v":"l"},{"$f":"CHAR(TblAscii[[#This Row],[Code ASCII]])","v":"l"},{"$f":"CHAR(TblAscii[[#This Row],[Code ASCII]])","v":"l"},{"$f":"CHAR(TblAscii[[#This Row],[Code ASCII]])","v":"l"},{"$f":"CHAR(TblAscii[[#This Row],[Code ASCII]])","v":"l"}]
[109,{"$f":"CHAR(TblAscii[[#This Row],[Code ASCII]])","v":"m"},{"$f":"CHAR(TblAscii[[#This Row],[Code ASCII]])","v":"m"},{"$f":"CHAR(TblAscii[[#This Row],[Code ASCII]])","v":"m"},{"$f":"CHAR(TblAscii[[#This Row],[Code ASCII]])","v":"m"},{"$f":"CHAR(TblAscii[[#This Row],[Code ASCII]])","v":"m"}]
[110,{"$f":"CHAR(TblAscii[[#This Row],[Code ASCII]])","v":"n"},{"$f":"CHAR(TblAscii[[#This Row],[Code ASCII]])","v":"n"},{"$f":"CHAR(TblAscii[[#This Row],[Code ASCII]])","v":"n"},{"$f":"CHAR(TblAscii[[#This Row],[Code ASCII]])","v":"n"},{"$f":"CHAR(TblAscii[[#This Row],[Code ASCII]])","v":"n"}]
[111,{"$f":"CHAR(TblAscii[[#This Row],[Code ASCII]])","v":"o"},{"$f":"CHAR(TblAscii[[#This Row],[Code ASCII]])","v":"o"},{"$f":"CHAR(TblAscii[[#This Row],[Code ASCII]])","v":"o"},{"$f":"CHAR(TblAscii[[#This Row],[Code ASCII]])","v":"o"},{"$f":"CHAR(TblAscii[[#This Row],[Code ASCII]])","v":"o"}]
[112,{"$f":"CHAR(TblAscii[[#This Row],[Code ASCII]])","v":"p"},{"$f":"CHAR(TblAscii[[#This Row],[Code ASCII]])","v":"p"},{"$f":"CHAR(TblAscii[[#This Row],[Code ASCII]])","v":"p"},{"$f":"CHAR(TblAscii[[#This Row],[Code ASCII]])","v":"p"},{"$f":"CHAR(TblAscii[[#This Row],[Code ASCII]])","v":"p"}]
[113,{"$f":"CHAR(TblAscii[[#This Row],[Code ASCII]])","v":"q"},{"$f":"CHAR(TblAscii[[#This Row],[Code ASCII]])","v":"q"},{"$f":"CHAR(TblAscii[[#This Row],[Code ASCII]])","v":"q"},{"$f":"CHAR(TblAscii[[#This Row],[Code ASCII]])","v":"q"},{"$f":"CHAR(TblAscii[[#This Row],[Code ASCII]])","v":"q"}]
[114,{"$f":"CHAR(TblAscii[[#This Row],[Code ASCII]])","v":"r"},{"$f":"CHAR(TblAscii[[#This Row],[Code ASCII]])","v":"r"},{"$f":"CHAR(TblAscii[[#This Row],[Code ASCII]])","v":"r"},{"$f":"CHAR(TblAscii[[#This Row],[Code ASCII]])","v":"r"},{"$f":"CHAR(TblAscii[[#This Row],[Code ASCII]])","v":"r"}]
[115,{"$f":"CHAR(TblAscii[[#This Row],[Code ASCII]])","v":"s"},{"$f":"CHAR(TblAscii[[#This Row],[Code ASCII]])","v":"s"},{"$f":"CHAR(TblAscii[[#This Row],[Code ASCII]])","v":"s"},{"$f":"CHAR(TblAscii[[#This Row],[Code ASCII]])","v":"s"},{"$f":"CHAR(TblAscii[[#This Row],[Code ASCII]])","v":"s"}]
[116,{"$f":"CHAR(TblAscii[[#This Row],[Code ASCII]])","v":"t"},{"$f":"CHAR(TblAscii[[#This Row],[Code ASCII]])","v":"t"},{"$f":"CHAR(TblAscii[[#This Row],[Code ASCII]])","v":"t"},{"$f":"CHAR(TblAscii[[#This Row],[Code ASCII]])","v":"t"},{"$f":"CHAR(TblAscii[[#This Row],[Code ASCII]])","v":"t"}]
[117,{"$f":"CHAR(TblAscii[[#This Row],[Code ASCII]])","v":"u"},{"$f":"CHAR(TblAscii[[#This Row],[Code ASCII]])","v":"u"},{"$f":"CHAR(TblAscii[[#This Row],[Code ASCII]])","v":"u"},{"$f":"CHAR(TblAscii[[#This Row],[Code ASCII]])","v":"u"},{"$f":"CHAR(TblAscii[[#This Row],[Code ASCII]])","v":"u"}]
[118,{"$f":"CHAR(TblAscii[[#This Row],[Code ASCII]])","v":"v"},{"$f":"CHAR(TblAscii[[#This Row],[Code ASCII]])","v":"v"},{"$f":"CHAR(TblAscii[[#This Row],[Code ASCII]])","v":"v"},{"$f":"CHAR(TblAscii[[#This Row],[Code ASCII]])","v":"v"},{"$f":"CHAR(TblAscii[[#This Row],[Code ASCII]])","v":"v"}]
[119,{"$f":"CHAR(TblAscii[[#This Row],[Code ASCII]])","v":"w"},{"$f":"CHAR(TblAscii[[#This Row],[Code ASCII]])","v":"w"},{"$f":"CHAR(TblAscii[[#This Row],[Code ASCII]])","v":"w"},{"$f":"CHAR(TblAscii[[#This Row],[Code ASCII]])","v":"w"},{"$f":"CHAR(TblAscii[[#This Row],[Code ASCII]])","v":"w"}]
[120,{"$f":"CHAR(TblAscii[[#This Row],[Code ASCII]])","v":"x"},{"$f":"CHAR(TblAscii[[#This Row],[Code ASCII]])","v":"x"},{"$f":"CHAR(TblAscii[[#This Row],[Code ASCII]])","v":"x"},{"$f":"CHAR(TblAscii[[#This Row],[Code ASCII]])","v":"x"},{"$f":"CHAR(TblAscii[[#This Row],[Code ASCII]])","v":"x"}]
[121,{"$f":"CHAR(TblAscii[[#This Row],[Code ASCII]])","v":"y"},{"$f":"CHAR(TblAscii[[#This Row],[Code ASCII]])","v":"y"},{"$f":"CHAR(TblAscii[[#This Row],[Code ASCII]])","v":"y"},{"$f":"CHAR(TblAscii[[#This Row],[Code ASCII]])","v":"y"},{"$f":"CHAR(TblAscii[[#This Row],[Code ASCII]])","v":"y"}]
[122,{"$f":"CHAR(TblAscii[[#This Row],[Code ASCII]])","v":"z"},{"$f":"CHAR(TblAscii[[#This Row],[Code ASCII]])","v":"z"},{"$f":"CHAR(TblAscii[[#This Row],[Code ASCII]])","v":"z"},{"$f":"CHAR(TblAscii[[#This Row],[Code ASCII]])","v":"z"},{"$f":"CHAR(TblAscii[[#This Row],[Code ASCII]])","v":"z"}]
[123,{"$f":"CHAR(TblAscii[[#This Row],[Code ASCII]])","v":"{"},{"$f":"CHAR(TblAscii[[#This Row],[Code ASCII]])","v":"{"},{"$f":"CHAR(TblAscii[[#This Row],[Code ASCII]])","v":"{"},{"$f":"CHAR(TblAscii[[#This Row],[Code ASCII]])","v":"{"},{"$f":"CHAR(TblAscii[[#This Row],[Code ASCII]])","v":"{"}]
[124,{"$f":"CHAR(TblAscii[[#This Row],[Code ASCII]])","v":"|"},{"$f":"CHAR(TblAscii[[#This Row],[Code ASCII]])","v":"|"},{"$f":"CHAR(TblAscii[[#This Row],[Code ASCII]])","v":"|"},{"$f":"CHAR(TblAscii[[#This Row],[Code ASCII]])","v":"|"},{"$f":"CHAR(TblAscii[[#This Row],[Code ASCII]])","v":"|"}]
[125,{"$f":"CHAR(TblAscii[[#This Row],[Code ASCII]])","v":"}"},{"$f":"CHAR(TblAscii[[#This Row],[Code ASCII]])","v":"}"},{"$f":"CHAR(TblAscii[[#This Row],[Code ASCII]])","v":"}"},{"$f":"CHAR(TblAscii[[#This Row],[Code ASCII]])","v":"}"},{"$f":"CHAR(TblAscii[[#This Row],[Code ASCII]])","v":"}"}]
[126,{"$f":"CHAR(TblAscii[[#This Row],[Code ASCII]])","v":"~"},{"$f":"CHAR(TblAscii[[#This Row],[Code ASCII]])","v":"~"},{"$f":"CHAR(TblAscii[[#This Row],[Code ASCII]])","v":"~"},{"$f":"CHAR(TblAscii[[#This Row],[Code ASCII]])","v":"~"},{"$f":"CHAR(TblAscii[[#This Row],[Code ASCII]])","v":"~"}]
[127,{"$f":"CHAR(TblAscii[[#This Row],[Code ASCII]])","v":"\u007f"},{"$f":"CHAR(TblAscii[[#This Row],[Code ASCII]])","v":"\u007f"},{"$f":"CHAR(TblAscii[[#This Row],[Code ASCII]])","v":"\u007f"},{"$f":"CHAR(TblAscii[[#This Row],[Code ASCII]])","v":"\u007f"},{"$f":"CHAR(TblAscii[[#This Row],[Code ASCII]])","v":"\u007f"}]
[128,{"$f":"CHAR(TblAscii[[#This Row],[Code ASCII]])","v":"€"},{"$f":"CHAR(TblAscii[[#This Row],[Code ASCII]])","v":"€"},{"$f":"CHAR(TblAscii[[#This Row],[Code ASCII]])","v":"€"},{"$f":"CHAR(TblAscii[[#This Row],[Code ASCII]])","v":"€"},{"$f":"CHAR(TblAscii[[#This Row],[Code ASCII]])","v":"€"}]
[{"$f":"ROW()-1","v":129},{"$f":"CHAR(TblAscii[[#This Row],[Code ASCII]])","v":"\u0081"},{"$f":"CHAR(TblAscii[[#This Row],[Code ASCII]])","v":"\u0081"},{"$f":"CHAR(TblAscii[[#This Row],[Code ASCII]])","v":"\u0081"},{"$f":"CHAR(TblAscii[[#This Row],[Code ASCII]])","v":"\u0081"},{"$f":"CHAR(TblAscii[[#This Row],[Code ASCII]])","v":"\u0081"}]
[130,{"$f":"CHAR(TblAscii[[#This Row],[Code ASCII]])","v":"‚"},{"$f":"CHAR(TblAscii[[#This Row],[Code ASCII]])","v":"‚"},{"$f":"CHAR(TblAscii[[#This Row],[Code ASCII]])","v":"‚"},{"$f":"CHAR(TblAscii[[#This Row],[Code ASCII]])","v":"‚"},{"$f":"CHAR(TblAscii[[#This Row],[Code ASCII]])","v":"‚"}]
[131,{"$f":"CHAR(TblAscii[[#This Row],[Code ASCII]])","v":"ƒ"},{"$f":"CHAR(TblAscii[[#This Row],[Code ASCII]])","v":"ƒ"},{"$f":"CHAR(TblAscii[[#This Row],[Code ASCII]])","v":"ƒ"},{"$f":"CHAR(TblAscii[[#This Row],[Code ASCII]])","v":"ƒ"},{"$f":"CHAR(TblAscii[[#This Row],[Code ASCII]])","v":"ƒ"}]
[132,{"$f":"CHAR(TblAscii[[#This Row],[Code ASCII]])","v":"„"},{"$f":"CHAR(TblAscii[[#This Row],[Code ASCII]])","v":"„"},{"$f":"CHAR(TblAscii[[#This Row],[Code ASCII]])","v":"„"},{"$f":"CHAR(TblAscii[[#This Row],[Code ASCII]])","v":"„"},{"$f":"CHAR(TblAscii[[#This Row],[Code ASCII]])","v":"„"}]
[133,{"$f":"CHAR(TblAscii[[#This Row],[Code ASCII]])","v":"…"},{"$f":"CHAR(TblAscii[[#This Row],[Code ASCII]])","v":"…"},{"$f":"CHAR(TblAscii[[#This Row],[Code ASCII]])","v":"…"},{"$f":"CHAR(TblAscii[[#This Row],[Code ASCII]])","v":"…"},{"$f":"CHAR(TblAscii[[#This Row],[Code ASCII]])","v":"…"}]
[134,{"$f":"CHAR(TblAscii[[#This Row],[Code ASCII]])","v":"†"},{"$f":"CHAR(TblAscii[[#This Row],[Code ASCII]])","v":"†"},{"$f":"CHAR(TblAscii[[#This Row],[Code ASCII]])","v":"†"},{"$f":"CHAR(TblAscii[[#This Row],[Code ASCII]])","v":"†"},{"$f":"CHAR(TblAscii[[#This Row],[Code ASCII]])","v":"†"}]
[135,{"$f":"CHAR(TblAscii[[#This Row],[Code ASCII]])","v":"‡"},{"$f":"CHAR(TblAscii[[#This Row],[Code ASCII]])","v":"‡"},{"$f":"CHAR(TblAscii[[#This Row],[Code ASCII]])","v":"‡"},{"$f":"CHAR(TblAscii[[#This Row],[Code ASCII]])","v":"‡"},{"$f":"CHAR(TblAscii[[#This Row],[Code ASCII]])","v":"‡"}]
[136,{"$f":"CHAR(TblAscii[[#This Row],[Code ASCII]])","v":"ˆ"},{"$f":"CHAR(TblAscii[[#This Row],[Code ASCII]])","v":"ˆ"},{"$f":"CHAR(TblAscii[[#This Row],[Code ASCII]])","v":"ˆ"},{"$f":"CHAR(TblAscii[[#This Row],[Code ASCII]])","v":"ˆ"},{"$f":"CHAR(TblAscii[[#This Row],[Code ASCII]])","v":"ˆ"}]
[137,{"$f":"CHAR(TblAscii[[#This Row],[Code ASCII]])","v":"‰"},{"$f":"CHAR(TblAscii[[#This Row],[Code ASCII]])","v":"‰"},{"$f":"CHAR(TblAscii[[#This Row],[Code ASCII]])","v":"‰"},{"$f":"CHAR(TblAscii[[#This Row],[Code ASCII]])","v":"‰"},{"$f":"CHAR(TblAscii[[#This Row],[Code ASCII]])","v":"‰"}]
[138,{"$f":"CHAR(TblAscii[[#This Row],[Code ASCII]])","v":"Š"},{"$f":"CHAR(TblAscii[[#This Row],[Code ASCII]])","v":"Š"},{"$f":"CHAR(TblAscii[[#This Row],[Code ASCII]])","v":"Š"},{"$f":"CHAR(TblAscii[[#This Row],[Code ASCII]])","v":"Š"},{"$f":"CHAR(TblAscii[[#This Row],[Code ASCII]])","v":"Š"}]
[139,{"$f":"CHAR(TblAscii[[#This Row],[Code ASCII]])","v":"‹"},{"$f":"CHAR(TblAscii[[#This Row],[Code ASCII]])","v":"‹"},{"$f":"CHAR(TblAscii[[#This Row],[Code ASCII]])","v":"‹"},{"$f":"CHAR(TblAscii[[#This Row],[Code ASCII]])","v":"‹"},{"$f":"CHAR(TblAscii[[#This Row],[Code ASCII]])","v":"‹"}]
[140,{"$f":"CHAR(TblAscii[[#This Row],[Code ASCII]])","v":"Œ"},{"$f":"CHAR(TblAscii[[#This Row],[Code ASCII]])","v":"Œ"},{"$f":"CHAR(TblAscii[[#This Row],[Code ASCII]])","v":"Œ"},{"$f":"CHAR(TblAscii[[#This Row],[Code ASCII]])","v":"Œ"},{"$f":"CHAR(TblAscii[[#This Row],[Code ASCII]])","v":"Œ"}]
[141,{"$f":"CHAR(TblAscii[[#This Row],[Code ASCII]])","v":"\u008d"},{"$f":"CHAR(TblAscii[[#This Row],[Code ASCII]])","v":"\u008d"},{"$f":"CHAR(TblAscii[[#This Row],[Code ASCII]])","v":"\u008d"},{"$f":"CHAR(TblAscii[[#This Row],[Code ASCII]])","v":"\u008d"},{"$f":"CHAR(TblAscii[[#This Row],[Code ASCII]])","v":"\u008d"}]
[142,{"$f":"CHAR(TblAscii[[#This Row],[Code ASCII]])","v":"Ž"},{"$f":"CHAR(TblAscii[[#This Row],[Code ASCII]])","v":"Ž"},{"$f":"CHAR(TblAscii[[#This Row],[Code ASCII]])","v":"Ž"},{"$f":"CHAR(TblAscii[[#This Row],[Code ASCII]])","v":"Ž"},{"$f":"CHAR(TblAscii[[#This Row],[Code ASCII]])","v":"Ž"}]
[143,{"$f":"CHAR(TblAscii[[#This Row],[Code ASCII]])","v":"\u008f"},{"$f":"CHAR(TblAscii[[#This Row],[Code ASCII]])","v":"\u008f"},{"$f":"CHAR(TblAscii[[#This Row],[Code ASCII]])","v":"\u008f"},{"$f":"CHAR(TblAscii[[#This Row],[Code ASCII]])","v":"\u008f"},{"$f":"CHAR(TblAscii[[#This Row],[Code ASCII]])","v":"\u008f"}]
[144,{"$f":"CHAR(TblAscii[[#This Row],[Code ASCII]])","v":"\u0090"},{"$f":"CHAR(TblAscii[[#This Row],[Code ASCII]])","v":"\u0090"},{"$f":"CHAR(TblAscii[[#This Row],[Code ASCII]])","v":"\u0090"},{"$f":"CHAR(TblAscii[[#This Row],[Code ASCII]])","v":"\u0090"},{"$f":"CHAR(TblAscii[[#This Row],[Code ASCII]])","v":"\u0090"}]
[145,{"$f":"CHAR(TblAscii[[#This Row],[Code ASCII]])","v":"‘"},{"$f":"CHAR(TblAscii[[#This Row],[Code ASCII]])","v":"‘"},{"$f":"CHAR(TblAscii[[#This Row],[Code ASCII]])","v":"‘"},{"$f":"CHAR(TblAscii[[#This Row],[Code ASCII]])","v":"‘"},{"$f":"CHAR(TblAscii[[#This Row],[Code ASCII]])","v":"‘"}]
[146,{"$f":"CHAR(TblAscii[[#This Row],[Code ASCII]])","v":"’"},{"$f":"CHAR(TblAscii[[#This Row],[Code ASCII]])","v":"’"},{"$f":"CHAR(TblAscii[[#This Row],[Code ASCII]])","v":"’"},{"$f":"CHAR(TblAscii[[#This Row],[Code ASCII]])","v":"’"},{"$f":"CHAR(TblAscii[[#This Row],[Code ASCII]])","v":"’"}]
[147,{"$f":"CHAR(TblAscii[[#This Row],[Code ASCII]])","v":"“"},{"$f":"CHAR(TblAscii[[#This Row],[Code ASCII]])","v":"“"},{"$f":"CHAR(TblAscii[[#This Row],[Code ASCII]])","v":"“"},{"$f":"CHAR(TblAscii[[#This Row],[Code ASCII]])","v":"“"},{"$f":"CHAR(TblAscii[[#This Row],[Code ASCII]])","v":"“"}]
[148,{"$f":"CHAR(TblAscii[[#This Row],[Code ASCII]])","v":"”"},{"$f":"CHAR(TblAscii[[#This Row],[Code ASCII]])","v":"”"},{"$f":"CHAR(TblAscii[[#This Row],[Code ASCII]])","v":"”"},{"$f":"CHAR(TblAscii[[#This Row],[Code ASCII]])","v":"”"},{"$f":"CHAR(TblAscii[[#This Row],[Code ASCII]])","v":"”"}]
[149,{"$f":"CHAR(TblAscii[[#This Row],[Code ASCII]])","v":"•"},{"$f":"CHAR(TblAscii[[#This Row],[Code ASCII]])","v":"•"},{"$f":"CHAR(TblAscii[[#This Row],[Code ASCII]])","v":"•"},{"$f":"CHAR(TblAscii[[#This Row],[Code ASCII]])","v":"•"},{"$f":"CHAR(TblAscii[[#This Row],[Code ASCII]])","v":"•"}]
[150,{"$f":"CHAR(TblAscii[[#This Row],[Code ASCII]])","v":"–"},{"$f":"CHAR(TblAscii[[#This Row],[Code ASCII]])","v":"–"},{"$f":"CHAR(TblAscii[[#This Row],[Code ASCII]])","v":"–"},{"$f":"CHAR(TblAscii[[#This Row],[Code ASCII]])","v":"–"},{"$f":"CHAR(TblAscii[[#This Row],[Code ASCII]])","v":"–"}]
[151,{"$f":"CHAR(TblAscii[[#This Row],[Code ASCII]])","v":"—"},{"$f":"CHAR(TblAscii[[#This Row],[Code ASCII]])","v":"—"},{"$f":"CHAR(TblAscii[[#This Row],[Code ASCII]])","v":"—"},{"$f":"CHAR(TblAscii[[#This Row],[Code ASCII]])","v":"—"},{"$f":"CHAR(TblAscii[[#This Row],[Code ASCII]])","v":"—"}]
[152,{"$f":"CHAR(TblAscii[[#This Row],[Code ASCII]])","v":"˜"},{"$f":"CHAR(TblAscii[[#This Row],[Code ASCII]])","v":"˜"},{"$f":"CHAR(TblAscii[[#This Row],[Code ASCII]])","v":"˜"},{"$f":"CHAR(TblAscii[[#This Row],[Code ASCII]])","v":"˜"},{"$f":"CHAR(TblAscii[[#This Row],[Code ASCII]])","v":"˜"}]
[153,{"$f":"CHAR(TblAscii[[#This Row],[Code ASCII]])","v":"™"},{"$f":"CHAR(TblAscii[[#This Row],[Code ASCII]])","v":"™"},{"$f":"CHAR(TblAscii[[#This Row],[Code ASCII]])","v":"™"},{"$f":"CHAR(TblAscii[[#This Row],[Code ASCII]])","v":"™"},{"$f":"CHAR(TblAscii[[#This Row],[Code ASCII]])","v":"™"}]
[154,{"$f":"CHAR(TblAscii[[#This Row],[Code ASCII]])","v":"š"},{"$f":"CHAR(TblAscii[[#This Row],[Code ASCII]])","v":"š"},{"$f":"CHAR(TblAscii[[#This Row],[Code ASCII]])","v":"š"},{"$f":"CHAR(TblAscii[[#This Row],[Code ASCII]])","v":"š"},{"$f":"CHAR(TblAscii[[#This Row],[Code ASCII]])","v":"š"}]
[155,{"$f":"CHAR(TblAscii[[#This Row],[Code ASCII]])","v":"›"},{"$f":"CHAR(TblAscii[[#This Row],[Code ASCII]])","v":"›"},{"$f":"CHAR(TblAscii[[#This Row],[Code ASCII]])","v":"›"},{"$f":"CHAR(TblAscii[[#This Row],[Code ASCII]])","v":"›"},{"$f":"CHAR(TblAscii[[#This Row],[Code ASCII]])","v":"›"}]
[156,{"$f":"CHAR(TblAscii[[#This Row],[Code ASCII]])","v":"œ"},{"$f":"CHAR(TblAscii[[#This Row],[Code ASCII]])","v":"œ"},{"$f":"CHAR(TblAscii[[#This Row],[Code ASCII]])","v":"œ"},{"$f":"CHAR(TblAscii[[#This Row],[Code ASCII]])","v":"œ"},{"$f":"CHAR(TblAscii[[#This Row],[Code ASCII]])","v":"œ"}]
[157,{"$f":"CHAR(TblAscii[[#This Row],[Code ASCII]])","v":"\u009d"},{"$f":"CHAR(TblAscii[[#This Row],[Code ASCII]])","v":"\u009d"},{"$f":"CHAR(TblAscii[[#This Row],[Code ASCII]])","v":"\u009d"},{"$f":"CHAR(TblAscii[[#This Row],[Code ASCII]])","v":"\u009d"},{"$f":"CHAR(TblAscii[[#This Row],[Code ASCII]])","v":"\u009d"}]
[158,{"$f":"CHAR(TblAscii[[#This Row],[Code ASCII]])","v":"ž"},{"$f":"CHAR(TblAscii[[#This Row],[Code ASCII]])","v":"ž"},{"$f":"CHAR(TblAscii[[#This Row],[Code ASCII]])","v":"ž"},{"$f":"CHAR(TblAscii[[#This Row],[Code ASCII]])","v":"ž"},{"$f":"CHAR(TblAscii[[#This Row],[Code ASCII]])","v":"ž"}]
[159,{"$f":"CHAR(TblAscii[[#This Row],[Code ASCII]])","v":"Ÿ"},{"$f":"CHAR(TblAscii[[#This Row],[Code ASCII]])","v":"Ÿ"},{"$f":"CHAR(TblAscii[[#This Row],[Code ASCII]])","v":"Ÿ"},{"$f":"CHAR(TblAscii[[#This Row],[Code ASCII]])","v":"Ÿ"},{"$f":"CHAR(TblAscii[[#This Row],[Code ASCII]])","v":"Ÿ"}]
[160,{"$f":"CHAR(TblAscii[[#This Row],[Code ASCII]])","v":" "},{"$f":"CHAR(TblAscii[[#This Row],[Code ASCII]])","v":" "},{"$f":"CHAR(TblAscii[[#This Row],[Code ASCII]])","v":" "},{"$f":"CHAR(TblAscii[[#This Row],[Code ASCII]])","v":" "},{"$f":"CHAR(TblAscii[[#This Row],[Code ASCII]])","v":" "}]
[161,{"$f":"CHAR(TblAscii[[#This Row],[Code ASCII]])","v":"¡"},{"$f":"CHAR(TblAscii[[#This Row],[Code ASCII]])","v":"¡"},{"$f":"CHAR(TblAscii[[#This Row],[Code ASCII]])","v":"¡"},{"$f":"CHAR(TblAscii[[#This Row],[Code ASCII]])","v":"¡"},{"$f":"CHAR(TblAscii[[#This Row],[Code ASCII]])","v":"¡"}]
[162,{"$f":"CHAR(TblAscii[[#This Row],[Code ASCII]])","v":"¢"},{"$f":"CHAR(TblAscii[[#This Row],[Code ASCII]])","v":"¢"},{"$f":"CHAR(TblAscii[[#This Row],[Code ASCII]])","v":"¢"},{"$f":"CHAR(TblAscii[[#This Row],[Code ASCII]])","v":"¢"},{"$f":"CHAR(TblAscii[[#This Row],[Code ASCII]])","v":"¢"}]
[163,{"$f":"CHAR(TblAscii[[#This Row],[Code ASCII]])","v":"£"},{"$f":"CHAR(TblAscii[[#This Row],[Code ASCII]])","v":"£"},{"$f":"CHAR(TblAscii[[#This Row],[Code ASCII]])","v":"£"},{"$f":"CHAR(TblAscii[[#This Row],[Code ASCII]])","v":"£"},{"$f":"CHAR(TblAscii[[#This Row],[Code ASCII]])","v":"£"}]
[164,{"$f":"CHAR(TblAscii[[#This Row],[Code ASCII]])","v":"¤"},{"$f":"CHAR(TblAscii[[#This Row],[Code ASCII]])","v":"¤"},{"$f":"CHAR(TblAscii[[#This Row],[Code ASCII]])","v":"¤"},{"$f":"CHAR(TblAscii[[#This Row],[Code ASCII]])","v":"¤"},{"$f":"CHAR(TblAscii[[#This Row],[Code ASCII]])","v":"¤"}]
[165,{"$f":"CHAR(TblAscii[[#This Row],[Code ASCII]])","v":"¥"},{"$f":"CHAR(TblAscii[[#This Row],[Code ASCII]])","v":"¥"},{"$f":"CHAR(TblAscii[[#This Row],[Code ASCII]])","v":"¥"},{"$f":"CHAR(TblAscii[[#This Row],[Code ASCII]])","v":"¥"},{"$f":"CHAR(TblAscii[[#This Row],[Code ASCII]])","v":"¥"}]
[166,{"$f":"CHAR(TblAscii[[#This Row],[Code ASCII]])","v":"¦"},{"$f":"CHAR(TblAscii[[#This Row],[Code ASCII]])","v":"¦"},{"$f":"CHAR(TblAscii[[#This Row],[Code ASCII]])","v":"¦"},{"$f":"CHAR(TblAscii[[#This Row],[Code ASCII]])","v":"¦"},{"$f":"CHAR(TblAscii[[#This Row],[Code ASCII]])","v":"¦"}]
[167,{"$f":"CHAR(TblAscii[[#This Row],[Code ASCII]])","v":"§"},{"$f":"CHAR(TblAscii[[#This Row],[Code ASCII]])","v":"§"},{"$f":"CHAR(TblAscii[[#This Row],[Code ASCII]])","v":"§"},{"$f":"CHAR(TblAscii[[#This Row],[Code ASCII]])","v":"§"},{"$f":"CHAR(TblAscii[[#This Row],[Code ASCII]])","v":"§"}]
[168,{"$f":"CHAR(TblAscii[[#This Row],[Code ASCII]])","v":"¨"},{"$f":"CHAR(TblAscii[[#This Row],[Code ASCII]])","v":"¨"},{"$f":"CHAR(TblAscii[[#This Row],[Code ASCII]])","v":"¨"},{"$f":"CHAR(TblAscii[[#This Row],[Code ASCII]])","v":"¨"},{"$f":"CHAR(TblAscii[[#This Row],[Code ASCII]])","v":"¨"}]
[169,{"$f":"CHAR(TblAscii[[#This Row],[Code ASCII]])","v":"©"},{"$f":"CHAR(TblAscii[[#This Row],[Code ASCII]])","v":"©"},{"$f":"CHAR(TblAscii[[#This Row],[Code ASCII]])","v":"©"},{"$f":"CHAR(TblAscii[[#This Row],[Code ASCII]])","v":"©"},{"$f":"CHAR(TblAscii[[#This Row],[Code ASCII]])","v":"©"}]
[170,{"$f":"CHAR(TblAscii[[#This Row],[Code ASCII]])","v":"ª"},{"$f":"CHAR(TblAscii[[#This Row],[Code ASCII]])","v":"ª"},{"$f":"CHAR(TblAscii[[#This Row],[Code ASCII]])","v":"ª"},{"$f":"CHAR(TblAscii[[#This Row],[Code ASCII]])","v":"ª"},{"$f":"CHAR(TblAscii[[#This Row],[Code ASCII]])","v":"ª"}]
[171,{"$f":"CHAR(TblAscii[[#This Row],[Code ASCII]])","v":"«"},{"$f":"CHAR(TblAscii[[#This Row],[Code ASCII]])","v":"«"},{"$f":"CHAR(TblAscii[[#This Row],[Code ASCII]])","v":"«"},{"$f":"CHAR(TblAscii[[#This Row],[Code ASCII]])","v":"«"},{"$f":"CHAR(TblAscii[[#This Row],[Code ASCII]])","v":"«"}]
[172,{"$f":"CHAR(TblAscii[[#This Row],[Code ASCII]])","v":"¬"},{"$f":"CHAR(TblAscii[[#This Row],[Code ASCII]])","v":"¬"},{"$f":"CHAR(TblAscii[[#This Row],[Code ASCII]])","v":"¬"},{"$f":"CHAR(TblAscii[[#This Row],[Code ASCII]])","v":"¬"},{"$f":"CHAR(TblAscii[[#This Row],[Code ASCII]])","v":"¬"}]
[173,{"$f":"CHAR(TblAscii[[#This Row],[Code ASCII]])","v":"­"},{"$f":"CHAR(TblAscii[[#This Row],[Code ASCII]])","v":"­"},{"$f":"CHAR(TblAscii[[#This Row],[Code ASCII]])","v":"­"},{"$f":"CHAR(TblAscii[[#This Row],[Code ASCII]])","v":"­"},{"$f":"CHAR(TblAscii[[#This Row],[Code ASCII]])","v":"­"}]
[174,{"$f":"CHAR(TblAscii[[#This Row],[Code ASCII]])","v":"®"},{"$f":"CHAR(TblAscii[[#This Row],[Code ASCII]])","v":"®"},{"$f":"CHAR(TblAscii[[#This Row],[Code ASCII]])","v":"®"},{"$f":"CHAR(TblAscii[[#This Row],[Code ASCII]])","v":"®"},{"$f":"CHAR(TblAscii[[#This Row],[Code ASCII]])","v":"®"}]
[175,{"$f":"CHAR(TblAscii[[#This Row],[Code ASCII]])","v":"¯"},{"$f":"CHAR(TblAscii[[#This Row],[Code ASCII]])","v":"¯"},{"$f":"CHAR(TblAscii[[#This Row],[Code ASCII]])","v":"¯"},{"$f":"CHAR(TblAscii[[#This Row],[Code ASCII]])","v":"¯"},{"$f":"CHAR(TblAscii[[#This Row],[Code ASCII]])","v":"¯"}]
[176,{"$f":"CHAR(TblAscii[[#This Row],[Code ASCII]])","v":"°"},{"$f":"CHAR(TblAscii[[#This Row],[Code ASCII]])","v":"°"},{"$f":"CHAR(TblAscii[[#This Row],[Code ASCII]])","v":"°"},{"$f":"CHAR(TblAscii[[#This Row],[Code ASCII]])","v":"°"},{"$f":"CHAR(TblAscii[[#This Row],[Code ASCII]])","v":"°"}]
[177,{"$f":"CHAR(TblAscii[[#This Row],[Code ASCII]])","v":"±"},{"$f":"CHAR(TblAscii[[#This Row],[Code ASCII]])","v":"±"},{"$f":"CHAR(TblAscii[[#This Row],[Code ASCII]])","v":"±"},{"$f":"CHAR(TblAscii[[#This Row],[Code ASCII]])","v":"±"},{"$f":"CHAR(TblAscii[[#This Row],[Code ASCII]])","v":"±"}]
[178,{"$f":"CHAR(TblAscii[[#This Row],[Code ASCII]])","v":"²"},{"$f":"CHAR(TblAscii[[#This Row],[Code ASCII]])","v":"²"},{"$f":"CHAR(TblAscii[[#This Row],[Code ASCII]])","v":"²"},{"$f":"CHAR(TblAscii[[#This Row],[Code ASCII]])","v":"²"},{"$f":"CHAR(TblAscii[[#This Row],[Code ASCII]])","v":"²"}]
[179,{"$f":"CHAR(TblAscii[[#This Row],[Code ASCII]])","v":"³"},{"$f":"CHAR(TblAscii[[#This Row],[Code ASCII]])","v":"³"},{"$f":"CHAR(TblAscii[[#This Row],[Code ASCII]])","v":"³"},{"$f":"CHAR(TblAscii[[#This Row],[Code ASCII]])","v":"³"},{"$f":"CHAR(TblAscii[[#This Row],[Code ASCII]])","v":"³"}]
[180,{"$f":"CHAR(TblAscii[[#This Row],[Code ASCII]])","v":"´"},{"$f":"CHAR(TblAscii[[#This Row],[Code ASCII]])","v":"´"},{"$f":"CHAR(TblAscii[[#This Row],[Code ASCII]])","v":"´"},{"$f":"CHAR(TblAscii[[#This Row],[Code ASCII]])","v":"´"},{"$f":"CHAR(TblAscii[[#This Row],[Code ASCII]])","v":"´"}]
[181,{"$f":"CHAR(TblAscii[[#This Row],[Code ASCII]])","v":"µ"},{"$f":"CHAR(TblAscii[[#This Row],[Code ASCII]])","v":"µ"},{"$f":"CHAR(TblAscii[[#This Row],[Code ASCII]])","v":"µ"},{"$f":"CHAR(TblAscii[[#This Row],[Code ASCII]])","v":"µ"},{"$f":"CHAR(TblAscii[[#This Row],[Code ASCII]])","v":"µ"}]
[182,{"$f":"CHAR(TblAscii[[#This Row],[Code ASCII]])","v":"¶"},{"$f":"CHAR(TblAscii[[#This Row],[Code ASCII]])","v":"¶"},{"$f":"CHAR(TblAscii[[#This Row],[Code ASCII]])","v":"¶"},{"$f":"CHAR(TblAscii[[#This Row],[Code ASCII]])","v":"¶"},{"$f":"CHAR(TblAscii[[#This Row],[Code ASCII]])","v":"¶"}]
[183,{"$f":"CHAR(TblAscii[[#This Row],[Code ASCII]])","v":"·"},{"$f":"CHAR(TblAscii[[#This Row],[Code ASCII]])","v":"·"},{"$f":"CHAR(TblAscii[[#This Row],[Code ASCII]])","v":"·"},{"$f":"CHAR(TblAscii[[#This Row],[Code ASCII]])","v":"·"},{"$f":"CHAR(TblAscii[[#This Row],[Code ASCII]])","v":"·"}]
[184,{"$f":"CHAR(TblAscii[[#This Row],[Code ASCII]])","v":"¸"},{"$f":"CHAR(TblAscii[[#This Row],[Code ASCII]])","v":"¸"},{"$f":"CHAR(TblAscii[[#This Row],[Code ASCII]])","v":"¸"},{"$f":"CHAR(TblAscii[[#This Row],[Code ASCII]])","v":"¸"},{"$f":"CHAR(TblAscii[[#This Row],[Code ASCII]])","v":"¸"}]
[185,{"$f":"CHAR(TblAscii[[#This Row],[Code ASCII]])","v":"¹"},{"$f":"CHAR(TblAscii[[#This Row],[Code ASCII]])","v":"¹"},{"$f":"CHAR(TblAscii[[#This Row],[Code ASCII]])","v":"¹"},{"$f":"CHAR(TblAscii[[#This Row],[Code ASCII]])","v":"¹"},{"$f":"CHAR(TblAscii[[#This Row],[Code ASCII]])","v":"¹"}]
[186,{"$f":"CHAR(TblAscii[[#This Row],[Code ASCII]])","v":"º"},{"$f":"CHAR(TblAscii[[#This Row],[Code ASCII]])","v":"º"},{"$f":"CHAR(TblAscii[[#This Row],[Code ASCII]])","v":"º"},{"$f":"CHAR(TblAscii[[#This Row],[Code ASCII]])","v":"º"},{"$f":"CHAR(TblAscii[[#This Row],[Code ASCII]])","v":"º"}]
[187,{"$f":"CHAR(TblAscii[[#This Row],[Code ASCII]])","v":"»"},{"$f":"CHAR(TblAscii[[#This Row],[Code ASCII]])","v":"»"},{"$f":"CHAR(TblAscii[[#This Row],[Code ASCII]])","v":"»"},{"$f":"CHAR(TblAscii[[#This Row],[Code ASCII]])","v":"»"},{"$f":"CHAR(TblAscii[[#This Row],[Code ASCII]])","v":"»"}]
[188,{"$f":"CHAR(TblAscii[[#This Row],[Code ASCII]])","v":"¼"},{"$f":"CHAR(TblAscii[[#This Row],[Code ASCII]])","v":"¼"},{"$f":"CHAR(TblAscii[[#This Row],[Code ASCII]])","v":"¼"},{"$f":"CHAR(TblAscii[[#This Row],[Code ASCII]])","v":"¼"},{"$f":"CHAR(TblAscii[[#This Row],[Code ASCII]])","v":"¼"}]
[189,{"$f":"CHAR(TblAscii[[#This Row],[Code ASCII]])","v":"½"},{"$f":"CHAR(TblAscii[[#This Row],[Code ASCII]])","v":"½"},{"$f":"CHAR(TblAscii[[#This Row],[Code ASCII]])","v":"½"},{"$f":"CHAR(TblAscii[[#This Row],[Code ASCII]])","v":"½"},{"$f":"CHAR(TblAscii[[#This Row],[Code ASCII]])","v":"½"}]
[190,{"$f":"CHAR(TblAscii[[#This Row],[Code ASCII]])","v":"¾"},{"$f":"CHAR(TblAscii[[#This Row],[Code ASCII]])","v":"¾"},{"$f":"CHAR(TblAscii[[#This Row],[Code ASCII]])","v":"¾"},{"$f":"CHAR(TblAscii[[#This Row],[Code ASCII]])","v":"¾"},{"$f":"CHAR(TblAscii[[#This Row],[Code ASCII]])","v":"¾"}]
[191,{"$f":"CHAR(TblAscii[[#This Row],[Code ASCII]])","v":"¿"},{"$f":"CHAR(TblAscii[[#This Row],[Code ASCII]])","v":"¿"},{"$f":"CHAR(TblAscii[[#This Row],[Code ASCII]])","v":"¿"},{"$f":"CHAR(TblAscii[[#This Row],[Code ASCII]])","v":"¿"},{"$f":"CHAR(TblAscii[[#This Row],[Code ASCII]])","v":"¿"}]
[192,{"$f":"CHAR(TblAscii[[#This Row],[Code ASCII]])","v":"À"},{"$f":"CHAR(TblAscii[[#This Row],[Code ASCII]])","v":"À"},{"$f":"CHAR(TblAscii[[#This Row],[Code ASCII]])","v":"À"},{"$f":"CHAR(TblAscii[[#This Row],[Code ASCII]])","v":"À"},{"$f":"CHAR(TblAscii[[#This Row],[Code ASCII]])","v":"À"}]
[{"$f":"ROW()-1","v":193},{"$f":"CHAR(TblAscii[[#This Row],[Code ASCII]])","v":"Á"},{"$f":"CHAR(TblAscii[[#This Row],[Code ASCII]])","v":"Á"},{"$f":"CHAR(TblAscii[[#This Row],[Code ASCII]])","v":"Á"},{"$f":"CHAR(TblAscii[[#This Row],[Code ASCII]])","v":"Á"},{"$f":"CHAR(TblAscii[[#This Row],[Code ASCII]])","v":"Á"}]
[194,{"$f":"CHAR(TblAscii[[#This Row],[Code ASCII]])","v":"Â"},{"$f":"CHAR(TblAscii[[#This Row],[Code ASCII]])","v":"Â"},{"$f":"CHAR(TblAscii[[#This Row],[Code ASCII]])","v":"Â"},{"$f":"CHAR(TblAscii[[#This Row],[Code ASCII]])","v":"Â"},{"$f":"CHAR(TblAscii[[#This Row],[Code ASCII]])","v":"Â"}]
[195,{"$f":"CHAR(TblAscii[[#This Row],[Code ASCII]])","v":"Ã"},{"$f":"CHAR(TblAscii[[#This Row],[Code ASCII]])","v":"Ã"},{"$f":"CHAR(TblAscii[[#This Row],[Code ASCII]])","v":"Ã"},{"$f":"CHAR(TblAscii[[#This Row],[Code ASCII]])","v":"Ã"},{"$f":"CHAR(TblAscii[[#This Row],[Code ASCII]])","v":"Ã"}]
[196,{"$f":"CHAR(TblAscii[[#This Row],[Code ASCII]])","v":"Ä"},{"$f":"CHAR(TblAscii[[#This Row],[Code ASCII]])","v":"Ä"},{"$f":"CHAR(TblAscii[[#This Row],[Code ASCII]])","v":"Ä"},{"$f":"CHAR(TblAscii[[#This Row],[Code ASCII]])","v":"Ä"},{"$f":"CHAR(TblAscii[[#This Row],[Code ASCII]])","v":"Ä"}]
[197,{"$f":"CHAR(TblAscii[[#This Row],[Code ASCII]])","v":"Å"},{"$f":"CHAR(TblAscii[[#This Row],[Code ASCII]])","v":"Å"},{"$f":"CHAR(TblAscii[[#This Row],[Code ASCII]])","v":"Å"},{"$f":"CHAR(TblAscii[[#This Row],[Code ASCII]])","v":"Å"},{"$f":"CHAR(TblAscii[[#This Row],[Code ASCII]])","v":"Å"}]
[198,{"$f":"CHAR(TblAscii[[#This Row],[Code ASCII]])","v":"Æ"},{"$f":"CHAR(TblAscii[[#This Row],[Code ASCII]])","v":"Æ"},{"$f":"CHAR(TblAscii[[#This Row],[Code ASCII]])","v":"Æ"},{"$f":"CHAR(TblAscii[[#This Row],[Code ASCII]])","v":"Æ"},{"$f":"CHAR(TblAscii[[#This Row],[Code ASCII]])","v":"Æ"}]
[199,{"$f":"CHAR(TblAscii[[#This Row],[Code ASCII]])","v":"Ç"},{"$f":"CHAR(TblAscii[[#This Row],[Code ASCII]])","v":"Ç"},{"$f":"CHAR(TblAscii[[#This Row],[Code ASCII]])","v":"Ç"},{"$f":"CHAR(TblAscii[[#This Row],[Code ASCII]])","v":"Ç"},{"$f":"CHAR(TblAscii[[#This Row],[Code ASCII]])","v":"Ç"}]
[200,{"$f":"CHAR(TblAscii[[#This Row],[Code ASCII]])","v":"È"},{"$f":"CHAR(TblAscii[[#This Row],[Code ASCII]])","v":"È"},{"$f":"CHAR(TblAscii[[#This Row],[Code ASCII]])","v":"È"},{"$f":"CHAR(TblAscii[[#This Row],[Code ASCII]])","v":"È"},{"$f":"CHAR(TblAscii[[#This Row],[Code ASCII]])","v":"È"}]
[201,{"$f":"CHAR(TblAscii[[#This Row],[Code ASCII]])","v":"É"},{"$f":"CHAR(TblAscii[[#This Row],[Code ASCII]])","v":"É"},{"$f":"CHAR(TblAscii[[#This Row],[Code ASCII]])","v":"É"},{"$f":"CHAR(TblAscii[[#This Row],[Code ASCII]])","v":"É"},{"$f":"CHAR(TblAscii[[#This Row],[Code ASCII]])","v":"É"}]
[202,{"$f":"CHAR(TblAscii[[#This Row],[Code ASCII]])","v":"Ê"},{"$f":"CHAR(TblAscii[[#This Row],[Code ASCII]])","v":"Ê"},{"$f":"CHAR(TblAscii[[#This Row],[Code ASCII]])","v":"Ê"},{"$f":"CHAR(TblAscii[[#This Row],[Code ASCII]])","v":"Ê"},{"$f":"CHAR(TblAscii[[#This Row],[Code ASCII]])","v":"Ê"}]
[203,{"$f":"CHAR(TblAscii[[#This Row],[Code ASCII]])","v":"Ë"},{"$f":"CHAR(TblAscii[[#This Row],[Code ASCII]])","v":"Ë"},{"$f":"CHAR(TblAscii[[#This Row],[Code ASCII]])","v":"Ë"},{"$f":"CHAR(TblAscii[[#This Row],[Code ASCII]])","v":"Ë"},{"$f":"CHAR(TblAscii[[#This Row],[Code ASCII]])","v":"Ë"}]
[204,{"$f":"CHAR(TblAscii[[#This Row],[Code ASCII]])","v":"Ì"},{"$f":"CHAR(TblAscii[[#This Row],[Code ASCII]])","v":"Ì"},{"$f":"CHAR(TblAscii[[#This Row],[Code ASCII]])","v":"Ì"},{"$f":"CHAR(TblAscii[[#This Row],[Code ASCII]])","v":"Ì"},{"$f":"CHAR(TblAscii[[#This Row],[Code ASCII]])","v":"Ì"}]
[205,{"$f":"CHAR(TblAscii[[#This Row],[Code ASCII]])","v":"Í"},{"$f":"CHAR(TblAscii[[#This Row],[Code ASCII]])","v":"Í"},{"$f":"CHAR(TblAscii[[#This Row],[Code ASCII]])","v":"Í"},{"$f":"CHAR(TblAscii[[#This Row],[Code ASCII]])","v":"Í"},{"$f":"CHAR(TblAscii[[#This Row],[Code ASCII]])","v":"Í"}]
[206,{"$f":"CHAR(TblAscii[[#This Row],[Code ASCII]])","v":"Î"},{"$f":"CHAR(TblAscii[[#This Row],[Code ASCII]])","v":"Î"},{"$f":"CHAR(TblAscii[[#This Row],[Code ASCII]])","v":"Î"},{"$f":"CHAR(TblAscii[[#This Row],[Code ASCII]])","v":"Î"},{"$f":"CHAR(TblAscii[[#This Row],[Code ASCII]])","v":"Î"}]
[207,{"$f":"CHAR(TblAscii[[#This Row],[Code ASCII]])","v":"Ï"},{"$f":"CHAR(TblAscii[[#This Row],[Code ASCII]])","v":"Ï"},{"$f":"CHAR(TblAscii[[#This Row],[Code ASCII]])","v":"Ï"},{"$f":"CHAR(TblAscii[[#This Row],[Code ASCII]])","v":"Ï"},{"$f":"CHAR(TblAscii[[#This Row],[Code ASCII]])","v":"Ï"}]
[208,{"$f":"CHAR(TblAscii[[#This Row],[Code ASCII]])","v":"Ð"},{"$f":"CHAR(TblAscii[[#This Row],[Code ASCII]])","v":"Ð"},{"$f":"CHAR(TblAscii[[#This Row],[Code ASCII]])","v":"Ð"},{"$f":"CHAR(TblAscii[[#This Row],[Code ASCII]])","v":"Ð"},{"$f":"CHAR(TblAscii[[#This Row],[Code ASCII]])","v":"Ð"}]
[209,{"$f":"CHAR(TblAscii[[#This Row],[Code ASCII]])","v":"Ñ"},{"$f":"CHAR(TblAscii[[#This Row],[Code ASCII]])","v":"Ñ"},{"$f":"CHAR(TblAscii[[#This Row],[Code ASCII]])","v":"Ñ"},{"$f":"CHAR(TblAscii[[#This Row],[Code ASCII]])","v":"Ñ"},{"$f":"CHAR(TblAscii[[#This Row],[Code ASCII]])","v":"Ñ"}]
[210,{"$f":"CHAR(TblAscii[[#This Row],[Code ASCII]])","v":"Ò"},{"$f":"CHAR(TblAscii[[#This Row],[Code ASCII]])","v":"Ò"},{"$f":"CHAR(TblAscii[[#This Row],[Code ASCII]])","v":"Ò"},{"$f":"CHAR(TblAscii[[#This Row],[Code ASCII]])","v":"Ò"},{"$f":"CHAR(TblAscii[[#This Row],[Code ASCII]])","v":"Ò"}]
[211,{"$f":"CHAR(TblAscii[[#This Row],[Code ASCII]])","v":"Ó"},{"$f":"CHAR(TblAscii[[#This Row],[Code ASCII]])","v":"Ó"},{"$f":"CHAR(TblAscii[[#This Row],[Code ASCII]])","v":"Ó"},{"$f":"CHAR(TblAscii[[#This Row],[Code ASCII]])","v":"Ó"},{"$f":"CHAR(TblAscii[[#This Row],[Code ASCII]])","v":"Ó"}]
[212,{"$f":"CHAR(TblAscii[[#This Row],[Code ASCII]])","v":"Ô"},{"$f":"CHAR(TblAscii[[#This Row],[Code ASCII]])","v":"Ô"},{"$f":"CHAR(TblAscii[[#This Row],[Code ASCII]])","v":"Ô"},{"$f":"CHAR(TblAscii[[#This Row],[Code ASCII]])","v":"Ô"},{"$f":"CHAR(TblAscii[[#This Row],[Code ASCII]])","v":"Ô"}]
[213,{"$f":"CHAR(TblAscii[[#This Row],[Code ASCII]])","v":"Õ"},{"$f":"CHAR(TblAscii[[#This Row],[Code ASCII]])","v":"Õ"},{"$f":"CHAR(TblAscii[[#This Row],[Code ASCII]])","v":"Õ"},{"$f":"CHAR(TblAscii[[#This Row],[Code ASCII]])","v":"Õ"},{"$f":"CHAR(TblAscii[[#This Row],[Code ASCII]])","v":"Õ"}]
[214,{"$f":"CHAR(TblAscii[[#This Row],[Code ASCII]])","v":"Ö"},{"$f":"CHAR(TblAscii[[#This Row],[Code ASCII]])","v":"Ö"},{"$f":"CHAR(TblAscii[[#This Row],[Code ASCII]])","v":"Ö"},{"$f":"CHAR(TblAscii[[#This Row],[Code ASCII]])","v":"Ö"},{"$f":"CHAR(TblAscii[[#This Row],[Code ASCII]])","v":"Ö"}]
[215,{"$f":"CHAR(TblAscii[[#This Row],[Code ASCII]])","v":"×"},{"$f":"CHAR(TblAscii[[#This Row],[Code ASCII]])","v":"×"},{"$f":"CHAR(TblAscii[[#This Row],[Code ASCII]])","v":"×"},{"$f":"CHAR(TblAscii[[#This Row],[Code ASCII]])","v":"×"},{"$f":"CHAR(TblAscii[[#This Row],[Code ASCII]])","v":"×"}]
[216,{"$f":"CHAR(TblAscii[[#This Row],[Code ASCII]])","v":"Ø"},{"$f":"CHAR(TblAscii[[#This Row],[Code ASCII]])","v":"Ø"},{"$f":"CHAR(TblAscii[[#This Row],[Code ASCII]])","v":"Ø"},{"$f":"CHAR(TblAscii[[#This Row],[Code ASCII]])","v":"Ø"},{"$f":"CHAR(TblAscii[[#This Row],[Code ASCII]])","v":"Ø"}]
[217,{"$f":"CHAR(TblAscii[[#This Row],[Code ASCII]])","v":"Ù"},{"$f":"CHAR(TblAscii[[#This Row],[Code ASCII]])","v":"Ù"},{"$f":"CHAR(TblAscii[[#This Row],[Code ASCII]])","v":"Ù"},{"$f":"CHAR(TblAscii[[#This Row],[Code ASCII]])","v":"Ù"},{"$f":"CHAR(TblAscii[[#This Row],[Code ASCII]])","v":"Ù"}]
[218,{"$f":"CHAR(TblAscii[[#This Row],[Code ASCII]])","v":"Ú"},{"$f":"CHAR(TblAscii[[#This Row],[Code ASCII]])","v":"Ú"},{"$f":"CHAR(TblAscii[[#This Row],[Code ASCII]])","v":"Ú"},{"$f":"CHAR(TblAscii[[#This Row],[Code ASCII]])","v":"Ú"},{"$f":"CHAR(TblAscii[[#This Row],[Code ASCII]])","v":"Ú"}]
[219,{"$f":"CHAR(TblAscii[[#This Row],[Code ASCII]])","v":"Û"},{"$f":"CHAR(TblAscii[[#This Row],[Code ASCII]])","v":"Û"},{"$f":"CHAR(TblAscii[[#This Row],[Code ASCII]])","v":"Û"},{"$f":"CHAR(TblAscii[[#This Row],[Code ASCII]])","v":"Û"},{"$f":"CHAR(TblAscii[[#This Row],[Code ASCII]])","v":"Û"}]
[220,{"$f":"CHAR(TblAscii[[#This Row],[Code ASCII]])","v":"Ü"},{"$f":"CHAR(TblAscii[[#This Row],[Code ASCII]])","v":"Ü"},{"$f":"CHAR(TblAscii[[#This Row],[Code ASCII]])","v":"Ü"},{"$f":"CHAR(TblAscii[[#This Row],[Code ASCII]])","v":"Ü"},{"$f":"CHAR(TblAscii[[#This Row],[Code ASCII]])","v":"Ü"}]
[221,{"$f":"CHAR(TblAscii[[#This Row],[Code ASCII]])","v":"Ý"},{"$f":"CHAR(TblAscii[[#This Row],[Code ASCII]])","v":"Ý"},{"$f":"CHAR(TblAscii[[#This Row],[Code ASCII]])","v":"Ý"},{"$f":"CHAR(TblAscii[[#This Row],[Code ASCII]])","v":"Ý"},{"$f":"CHAR(TblAscii[[#This Row],[Code ASCII]])","v":"Ý"}]
[222,{"$f":"CHAR(TblAscii[[#This Row],[Code ASCII]])","v":"Þ"},{"$f":"CHAR(TblAscii[[#This Row],[Code ASCII]])","v":"Þ"},{"$f":"CHAR(TblAscii[[#This Row],[Code ASCII]])","v":"Þ"},{"$f":"CHAR(TblAscii[[#This Row],[Code ASCII]])","v":"Þ"},{"$f":"CHAR(TblAscii[[#This Row],[Code ASCII]])","v":"Þ"}]
[223,{"$f":"CHAR(TblAscii[[#This Row],[Code ASCII]])","v":"ß"},{"$f":"CHAR(TblAscii[[#This Row],[Code ASCII]])","v":"ß"},{"$f":"CHAR(TblAscii[[#This Row],[Code ASCII]])","v":"ß"},{"$f":"CHAR(TblAscii[[#This Row],[Code ASCII]])","v":"ß"},{"$f":"CHAR(TblAscii[[#This Row],[Code ASCII]])","v":"ß"}]
[224,{"$f":"CHAR(TblAscii[[#This Row],[Code ASCII]])","v":"à"},{"$f":"CHAR(TblAscii[[#This Row],[Code ASCII]])","v":"à"},{"$f":"CHAR(TblAscii[[#This Row],[Code ASCII]])","v":"à"},{"$f":"CHAR(TblAscii[[#This Row],[Code ASCII]])","v":"à"},{"$f":"CHAR(TblAscii[[#This Row],[Code ASCII]])","v":"à"}]
[225,{"$f":"CHAR(TblAscii[[#This Row],[Code ASCII]])","v":"á"},{"$f":"CHAR(TblAscii[[#This Row],[Code ASCII]])","v":"á"},{"$f":"CHAR(TblAscii[[#This Row],[Code ASCII]])","v":"á"},{"$f":"CHAR(TblAscii[[#This Row],[Code ASCII]])","v":"á"},{"$f":"CHAR(TblAscii[[#This Row],[Code ASCII]])","v":"á"}]
[226,{"$f":"CHAR(TblAscii[[#This Row],[Code ASCII]])","v":"â"},{"$f":"CHAR(TblAscii[[#This Row],[Code ASCII]])","v":"â"},{"$f":"CHAR(TblAscii[[#This Row],[Code ASCII]])","v":"â"},{"$f":"CHAR(TblAscii[[#This Row],[Code ASCII]])","v":"â"},{"$f":"CHAR(TblAscii[[#This Row],[Code ASCII]])","v":"â"}]
[227,{"$f":"CHAR(TblAscii[[#This Row],[Code ASCII]])","v":"ã"},{"$f":"CHAR(TblAscii[[#This Row],[Code ASCII]])","v":"ã"},{"$f":"CHAR(TblAscii[[#This Row],[Code ASCII]])","v":"ã"},{"$f":"CHAR(TblAscii[[#This Row],[Code ASCII]])","v":"ã"},{"$f":"CHAR(TblAscii[[#This Row],[Code ASCII]])","v":"ã"}]
[228,{"$f":"CHAR(TblAscii[[#This Row],[Code ASCII]])","v":"ä"},{"$f":"CHAR(TblAscii[[#This Row],[Code ASCII]])","v":"ä"},{"$f":"CHAR(TblAscii[[#This Row],[Code ASCII]])","v":"ä"},{"$f":"CHAR(TblAscii[[#This Row],[Code ASCII]])","v":"ä"},{"$f":"CHAR(TblAscii[[#This Row],[Code ASCII]])","v":"ä"}]
[229,{"$f":"CHAR(TblAscii[[#This Row],[Code ASCII]])","v":"å"},{"$f":"CHAR(TblAscii[[#This Row],[Code ASCII]])","v":"å"},{"$f":"CHAR(TblAscii[[#This Row],[Code ASCII]])","v":"å"},{"$f":"CHAR(TblAscii[[#This Row],[Code ASCII]])","v":"å"},{"$f":"CHAR(TblAscii[[#This Row],[Code ASCII]])","v":"å"}]
[230,{"$f":"CHAR(TblAscii[[#This Row],[Code ASCII]])","v":"æ"},{"$f":"CHAR(TblAscii[[#This Row],[Code ASCII]])","v":"æ"},{"$f":"CHAR(TblAscii[[#This Row],[Code ASCII]])","v":"æ"},{"$f":"CHAR(TblAscii[[#This Row],[Code ASCII]])","v":"æ"},{"$f":"CHAR(TblAscii[[#This Row],[Code ASCII]])","v":"æ"}]
[231,{"$f":"CHAR(TblAscii[[#This Row],[Code ASCII]])","v":"ç"},{"$f":"CHAR(TblAscii[[#This Row],[Code ASCII]])","v":"ç"},{"$f":"CHAR(TblAscii[[#This Row],[Code ASCII]])","v":"ç"},{"$f":"CHAR(TblAscii[[#This Row],[Code ASCII]])","v":"ç"},{"$f":"CHAR(TblAscii[[#This Row],[Code ASCII]])","v":"ç"}]
[232,{"$f":"CHAR(TblAscii[[#This Row],[Code ASCII]])","v":"è"},{"$f":"CHAR(TblAscii[[#This Row],[Code ASCII]])","v":"è"},{"$f":"CHAR(TblAscii[[#This Row],[Code ASCII]])","v":"è"},{"$f":"CHAR(TblAscii[[#This Row],[Code ASCII]])","v":"è"},{"$f":"CHAR(TblAscii[[#This Row],[Code ASCII]])","v":"è"}]
[233,{"$f":"CHAR(TblAscii[[#This Row],[Code ASCII]])","v":"é"},{"$f":"CHAR(TblAscii[[#This Row],[Code ASCII]])","v":"é"},{"$f":"CHAR(TblAscii[[#This Row],[Code ASCII]])","v":"é"},{"$f":"CHAR(TblAscii[[#This Row],[Code ASCII]])","v":"é"},{"$f":"CHAR(TblAscii[[#This Row],[Code ASCII]])","v":"é"}]
[234,{"$f":"CHAR(TblAscii[[#This Row],[Code ASCII]])","v":"ê"},{"$f":"CHAR(TblAscii[[#This Row],[Code ASCII]])","v":"ê"},{"$f":"CHAR(TblAscii[[#This Row],[Code ASCII]])","v":"ê"},{"$f":"CHAR(TblAscii[[#This Row],[Code ASCII]])","v":"ê"},{"$f":"CHAR(TblAscii[[#This Row],[Code ASCII]])","v":"ê"}]
[235,{"$f":"CHAR(TblAscii[[#This Row],[Code ASCII]])","v":"ë"},{"$f":"CHAR(TblAscii[[#This Row],[Code ASCII]])","v":"ë"},{"$f":"CHAR(TblAscii[[#This Row],[Code ASCII]])","v":"ë"},{"$f":"CHAR(TblAscii[[#This Row],[Code ASCII]])","v":"ë"},{"$f":"CHAR(TblAscii[[#This Row],[Code ASCII]])","v":"ë"}]
[236,{"$f":"CHAR(TblAscii[[#This Row],[Code ASCII]])","v":"ì"},{"$f":"CHAR(TblAscii[[#This Row],[Code ASCII]])","v":"ì"},{"$f":"CHAR(TblAscii[[#This Row],[Code ASCII]])","v":"ì"},{"$f":"CHAR(TblAscii[[#This Row],[Code ASCII]])","v":"ì"},{"$f":"CHAR(TblAscii[[#This Row],[Code ASCII]])","v":"ì"}]
[237,{"$f":"CHAR(TblAscii[[#This Row],[Code ASCII]])","v":"í"},{"$f":"CHAR(TblAscii[[#This Row],[Code ASCII]])","v":"í"},{"$f":"CHAR(TblAscii[[#This Row],[Code ASCII]])","v":"í"},{"$f":"CHAR(TblAscii[[#This Row],[Code ASCII]])","v":"í"},{"$f":"CHAR(TblAscii[[#This Row],[Code ASCII]])","v":"í"}]
[238,{"$f":"CHAR(TblAscii[[#This Row],[Code ASCII]])","v":"î"},{"$f":"CHAR(TblAscii[[#This Row],[Code ASCII]])","v":"î"},{"$f":"CHAR(TblAscii[[#This Row],[Code ASCII]])","v":"î"},{"$f":"CHAR(TblAscii[[#This Row],[Code ASCII]])","v":"î"},{"$f":"CHAR(TblAscii[[#This Row],[Code ASCII]])","v":"î"}]
[239,{"$f":"CHAR(TblAscii[[#This Row],[Code ASCII]])","v":"ï"},{"$f":"CHAR(TblAscii[[#This Row],[Code ASCII]])","v":"ï"},{"$f":"CHAR(TblAscii[[#This Row],[Code ASCII]])","v":"ï"},{"$f":"CHAR(TblAscii[[#This Row],[Code ASCII]])","v":"ï"},{"$f":"CHAR(TblAscii[[#This Row],[Code ASCII]])","v":"ï"}]
[240,{"$f":"CHAR(TblAscii[[#This Row],[Code ASCII]])","v":"ð"},{"$f":"CHAR(TblAscii[[#This Row],[Code ASCII]])","v":"ð"},{"$f":"CHAR(TblAscii[[#This Row],[Code ASCII]])","v":"ð"},{"$f":"CHAR(TblAscii[[#This Row],[Code ASCII]])","v":"ð"},{"$f":"CHAR(TblAscii[[#This Row],[Code ASCII]])","v":"ð"}]
[241,{"$f":"CHAR(TblAscii[[#This Row],[Code ASCII]])","v":"ñ"},{"$f":"CHAR(TblAscii[[#This Row],[Code ASCII]])","v":"ñ"},{"$f":"CHAR(TblAscii[[#This Row],[Code ASCII]])","v":"ñ"},{"$f":"CHAR(TblAscii[[#This Row],[Code ASCII]])","v":"ñ"},{"$f":"CHAR(TblAscii[[#This Row],[Code ASCII]])","v":"ñ"}]
[242,{"$f":"CHAR(TblAscii[[#This Row],[Code ASCII]])","v":"ò"},{"$f":"CHAR(TblAscii[[#This Row],[Code ASCII]])","v":"ò"},{"$f":"CHAR(TblAscii[[#This Row],[Code ASCII]])","v":"ò"},{"$f":"CHAR(TblAscii[[#This Row],[Code ASCII]])","v":"ò"},{"$f":"CHAR(TblAscii[[#This Row],[Code ASCII]])","v":"ò"}]
[243,{"$f":"CHAR(TblAscii[[#This Row],[Code ASCII]])","v":"ó"},{"$f":"CHAR(TblAscii[[#This Row],[Code ASCII]])","v":"ó"},{"$f":"CHAR(TblAscii[[#This Row],[Code ASCII]])","v":"ó"},{"$f":"CHAR(TblAscii[[#This Row],[Code ASCII]])","v":"ó"},{"$f":"CHAR(TblAscii[[#This Row],[Code ASCII]])","v":"ó"}]
[244,{"$f":"CHAR(TblAscii[[#This Row],[Code ASCII]])","v":"ô"},{"$f":"CHAR(TblAscii[[#This Row],[Code ASCII]])","v":"ô"},{"$f":"CHAR(TblAscii[[#This Row],[Code ASCII]])","v":"ô"},{"$f":"CHAR(TblAscii[[#This Row],[Code ASCII]])","v":"ô"},{"$f":"CHAR(TblAscii[[#This Row],[Code ASCII]])","v":"ô"}]
[245,{"$f":"CHAR(TblAscii[[#This Row],[Code ASCII]])","v":"õ"},{"$f":"CHAR(TblAscii[[#This Row],[Code ASCII]])","v":"õ"},{"$f":"CHAR(TblAscii[[#This Row],[Code ASCII]])","v":"õ"},{"$f":"CHAR(TblAscii[[#This Row],[Code ASCII]])","v":"õ"},{"$f":"CHAR(TblAscii[[#This Row],[Code ASCII]])","v":"õ"}]
[246,{"$f":"CHAR(TblAscii[[#This Row],[Code ASCII]])","v":"ö"},{"$f":"CHAR(TblAscii[[#This Row],[Code ASCII]])","v":"ö"},{"$f":"CHAR(TblAscii[[#This Row],[Code ASCII]])","v":"ö"},{"$f":"CHAR(TblAscii[[#This Row],[Code ASCII]])","v":"ö"},{"$f":"CHAR(TblAscii[[#This Row],[Code ASCII]])","v":"ö"}]
[247,{"$f":"CHAR(TblAscii[[#This Row],[Code ASCII]])","v":"÷"},{"$f":"CHAR(TblAscii[[#This Row],[Code ASCII]])","v":"÷"},{"$f":"CHAR(TblAscii[[#This Row],[Code ASCII]])","v":"÷"},{"$f":"CHAR(TblAscii[[#This Row],[Code ASCII]])","v":"÷"},{"$f":"CHAR(TblAscii[[#This Row],[Code ASCII]])","v":"÷"}]
[248,{"$f":"CHAR(TblAscii[[#This Row],[Code ASCII]])","v":"ø"},{"$f":"CHAR(TblAscii[[#This Row],[Code ASCII]])","v":"ø"},{"$f":"CHAR(TblAscii[[#This Row],[Code ASCII]])","v":"ø"},{"$f":"CHAR(TblAscii[[#This Row],[Code ASCII]])","v":"ø"},{"$f":"CHAR(TblAscii[[#This Row],[Code ASCII]])","v":"ø"}]
[249,{"$f":"CHAR(TblAscii[[#This Row],[Code ASCII]])","v":"ù"},{"$f":"CHAR(TblAscii[[#This Row],[Code ASCII]])","v":"ù"},{"$f":"CHAR(TblAscii[[#This Row],[Code ASCII]])","v":"ù"},{"$f":"CHAR(TblAscii[[#This Row],[Code ASCII]])","v":"ù"},{"$f":"CHAR(TblAscii[[#This Row],[Code ASCII]])","v":"ù"}]
[250,{"$f":"CHAR(TblAscii[[#This Row],[Code ASCII]])","v":"ú"},{"$f":"CHAR(TblAscii[[#This Row],[Code ASCII]])","v":"ú"},{"$f":"CHAR(TblAscii[[#This Row],[Code ASCII]])","v":"ú"},{"$f":"CHAR(TblAscii[[#This Row],[Code ASCII]])","v":"ú"},{"$f":"CHAR(TblAscii[[#This Row],[Code ASCII]])","v":"ú"}]
[251,{"$f":"CHAR(TblAscii[[#This Row],[Code ASCII]])","v":"û"},{"$f":"CHAR(TblAscii[[#This Row],[Code ASCII]])","v":"û"},{"$f":"CHAR(TblAscii[[#This Row],[Code ASCII]])","v":"û"},{"$f":"CHAR(TblAscii[[#This Row],[Code ASCII]])","v":"û"},{"$f":"CHAR(TblAscii[[#This Row],[Code ASCII]])","v":"û"}]
[252,{"$f":"CHAR(TblAscii[[#This Row],[Code ASCII]])","v":"ü"},{"$f":"CHAR(TblAscii[[#This Row],[Code ASCII]])","v":"ü"},{"$f":"CHAR(TblAscii[[#This Row],[Code ASCII]])","v":"ü"},{"$f":"CHAR(TblAscii[[#This Row],[Code ASCII]])","v":"ü"},{"$f":"CHAR(TblAscii[[#This Row],[Code ASCII]])","v":"ü"}]
[253,{"$f":"CHAR(TblAscii[[#This Row],[Code ASCII]])","v":"ý"},{"$f":"CHAR(TblAscii[[#This Row],[Code ASCII]])","v":"ý"},{"$f":"CHAR(TblAscii[[#This Row],[Code ASCII]])","v":"ý"},{"$f":"CHAR(TblAscii[[#This Row],[Code ASCII]])","v":"ý"},{"$f":"CHAR(TblAscii[[#This Row],[Code ASCII]])","v":"ý"}]
[254,{"$f":"CHAR(TblAscii[[#This Row],[Code ASCII]])","v":"þ"},{"$f":"CHAR(TblAscii[[#This Row],[Code ASCII]])","v":"þ"},{"$f":"CHAR(TblAscii[[#This Row],[Code ASCII]])","v":"þ"},{"$f":"CHAR(TblAscii[[#This Row],[Code ASCII]])","v":"þ"},{"$f":"CHAR(TblAscii[[#This Row],[Code ASCII]])","v":"þ"}]
[255,{"$f":"CHAR(TblAscii[[#This Row],[Code ASCII]])","v":"ÿ"},{"$f":"CHAR(TblAscii[[#This Row],[Code ASCII]])","v":"ÿ"},{"$f":"CHAR(TblAscii[[#This Row],[Code ASCII]])","v":"ÿ"},{"$f":"CHAR(TblAscii[[#This Row],[Code ASCII]])","v":"ÿ"},{"$f":"CHAR(TblAscii[[#This Row],[Code ASCII]])","v":"ÿ"}]

{"sheet":"WksAdministration","index":1,"n_rows":13,"n_cols":10,"rows_kept":13,"cut":false,"hidden":false,"merged":[]}
["Pourcentages","Lettre","Icone",null,"Mois","Turnover","Part de marché","Kpi"]
[0,"D",{"$f":"TblIcones[[#This Row],[Lettre]]","v":"D"},null,"Janvier",{"$f":"RANDBETWEEN(0,100)","v":28},{"$f":"F2/SUM(F$2:F$13)","v":3.6793692509855452E-2},{"$f":"VLOOKUP(TblPartDeMarche[[#This Row],[Part de marché]],TblIcones[],3,1)","v":"B"}]
[0.02,"B",{"$f":"TblIcones[[#This Row],[Lettre]]","v":"B"},null,"Février",76,{"$f":"F3/SUM(F$2:F$13)","v":9.9868593955321938E-2},{"$f":"VLOOKUP(TblPartDeMarche[[#This Row],[Part de marché]],TblIcones[],3,1)","v":"C"}]
[0.04,"E",{"$f":"TblIcones[[#This Row],[Lettre]]","v":"E"},null,"Mars",64,8.4099868593955324E-2,{"$f":"VLOOKUP(TblPartDeMarche[[#This Row],[Part de marché]],TblIcones[],3,1)","v":"C"}]
[0.06,"A",{"$f":"TblIcones[[#This Row],[Lettre]]","v":"A"},null,"Avril",100,0.13140604467805519,{"$f":"VLOOKUP(TblPartDeMarche[[#This Row],[Part de marché]],TblIcones[],3,1)","v":"J"}]
[0.08,"C",{"$f":"TblIcones[[#This Row],[Lettre]]","v":"C"},null,"Mai",18,2.3653088042049936E-2,{"$f":"VLOOKUP(TblPartDeMarche[[#This Row],[Part de marché]],TblIcones[],3,1)","v":"B"}]
[0.1,"J",{"$f":"TblIcones[[#This Row],[Lettre]]","v":"J"},null,"Juin",32,4.2049934296977662E-2,{"$f":"VLOOKUP(TblPartDeMarche[[#This Row],[Part de marché]],TblIcones[],3,1)","v":"E"}]
[null,null,null,null,"Juillet",94,0.12352168199737187,{"$f":"VLOOKUP(TblPartDeMarche[[#This Row],[Part de marché]],TblIcones[],3,1)","v":"J"}]
[null,null,null,null,"Août",88,0.11563731931668857,{"$f":"VLOOKUP(TblPartDeMarche[[#This Row],[Part de marché]],TblIcones[],3,1)","v":"J"}]
[null,null,null,null,"Septembre",61,8.0157687253613663E-2,{"$f":"VLOOKUP(TblPartDeMarche[[#This Row],[Part de marché]],TblIcones[],3,1)","v":"C"}]
[null,null,null,null,"Octobre",69,9.0670170827858082E-2,{"$f":"VLOOKUP(TblPartDeMarche[[#This Row],[Part de marché]],TblIcones[],3,1)","v":"C"}]
[null,null,null,null,"Novembre",64,8.4099868593955324E-2,{"$f":"VLOOKUP(TblPartDeMarche[[#This Row],[Part de marché]],TblIcones[],3,1)","v":"C"},null,"F9 pour un effet Kaléidoscope"]
[null,null,null,null,"Décembre",67,8.8042049934296984E-2,{"$f":"VLOOKUP(TblPartDeMarche[[#This Row],[Part de marché]],TblIcones[],3,1)","v":"C"}]